Workbook

Sheet Summary
A1: PRELIMINARY ESTIMATE OF DEVELOPMENT COSTS
A2: SUMMARY SHEET
A3: CG140690
A4: Wollert PSP - Roads Cost Estimate
A5: =TODAY() -> 2015-05-14
A6: Version 4
J7: Alternative Option
A8: ITEM | B8: DESCRIPTION | C8: ='RD-02-T10'!B4 -> RD-02 | D8: ='RD-03-T10'!B4 -> RD-03 | E8: ='RD-04-T10'!B4 -> RD-04 | F8: ='RD-05-T10'!B4 -> RD-05 | G8: ='RD-06-T10'!B4 -> RD-06 | H8: ='RD-07-T10'!B4 -> RD-07 | I8: Total Precinct | J8: ='RD-07dual -T11'!B4 -> RD-07-DUAL
B9: DRAWING SHEET REFERENCE | C9: T10-02 & 03-P2 | D9: T10-03 & 04-P2 | E9: T10-04 & 05-P2 | F9: T10-06 & 07-P2 | G9: T10-07 & 08-P2 | H9: T10-09, 10 & 11-P2 | I9: Developer Cost | J9: T11-P1
A10: A | B10: Project and Program Management (%) | C10: ='RD-02-T10'!G7 -> 120901.9899 | D10: ='RD-03-T10'!G7 -> 186694.1179 | E10: ='RD-04-T10'!G7 -> 161831.7305 | F10: ='RD-05-T10'!G7 -> 194967.7749 | G10: ='RD-06-T10'!G7 -> 190121.5427 | H10: ='RD-07-T10'!G7 -> 221712.5384 | J10: ='RD-07dual -T11'!G7 -> 263045.3755
A11: B | B11: Design and Investigation (%) | C11: ='RD-02-T10'!G15 -> 241803.9799 | D11: ='RD-03-T10'!G15 -> 373388.2358 | E11: ='RD-04-T10'!G15 -> 323663.461 | F11: ='RD-05-T10'!G15 -> 389935.5498 | G11: ='RD-06-T10'!G15 -> 380243.0855 | H11: ='RD-07-T10'!G15 -> 443425.0768 | J11: ='RD-07dual -T11'!G15 -> 526090.7509
A12: C | B12: Construction including Final Design | C12: ='RD-02-T10'!G24 -> 2680753.657 | D12: ='RD-03-T10'!G24 -> 4403163.159 | E12: ='RD-04-T10'!G24 -> 3741774.116 | F12: ='RD-05-T10'!G24 -> 4631063.537 | G12: ='RD-06-T10'!G24 -> 4499918.171 | H12: ='RD-07-T10'!G24 -> 5361850.989 | J12: ='RD-07dual -T11'!G24 -> 6519092.329
B14: TOTAL A - C | C14: ='RD-02-T10'!G86 -> 3043459.627 | D14: ='RD-03-T10'!G85 -> 4963245.512 | E14: ='RD-04-T10'!G84 -> 4227269.307 | F14: ='RD-05-T10'!G85 -> 5215966.862 | G14: ='RD-06-T10'!G85 -> 5070282.8 | H14: ='RD-07-T10'!G85 -> 6026988.604 | I14: =SUM(C14:H14) -> 28547212.71
J15: ='RD-07dual -T11'!G85 -> 7308228.455
A16: D | B16: CONTINGENCY
B17: Contingency (15% of C) | C17: ='RD-02-T10'!G89 -> 402113.0486 | D17: ='RD-03-T10'!G88 -> 660474.4738 | E17: ='RD-04-T10'!G87 -> 561266.1174 | F17: ='RD-05-T10'!G88 -> 694659.5306 | G17: ='RD-06-T10'!G88 -> 674987.7257 | H17: ='RD-07-T10'!G88 -> 804277.6483 | I17: =SUM(C17:H17) -> 3797778.544
J18: ='RD-07dual -T11'!G88 -> 977863.8493
A19: E | B19: PROJECT BUDGET
B20: Total Estimate | C20: ='RD-02-T10'!G92 -> 3445572.676 | D20: ='RD-03-T10'!G91 -> 5623719.986 | E20: ='RD-04-T10'!G90 -> 4788535.425 | F20: ='RD-05-T10'!G91 -> 5910626.392 | G20: ='RD-06-T10'!G91 -> 5745270.525 | H20: ='RD-07-T10'!G91 -> 6831266.252 | I20: =SUM(C20:H20) -> 32344991.26
J21: ='RD-07dual -T11'!G91 -> 8286092.304
B22: Total Estimate per linear metre | C22: ='RD-02-T10'!G93 -> 6501.08052 | D22: ='RD-03-T10'!G92 -> 6283.486018 | E22: ='RD-04-T10'!G91 -> 6243.201336 | F22: ='RD-05-T10'!G92 -> 5916.542935 | G22: ='RD-06-T10'!G92 -> 6258.464625 | H22: ='RD-07-T10'!G92 -> 6221.553964 | J22: ='RD-07dual -T11'!G92 -> 7546.532153
B24: PM % | C24: ='RD-02-T10'!D3 -> 0.0902 | D24: ='RD-03-T10'!D3 -> 0.0848 | E24: ='RD-04-T10'!D3 -> 0.0865 | F24: ='RD-05-T10'!D3 -> 0.0842 | G24: ='RD-06-T10'!D3 -> 0.0845 | H24: ='RD-07-T10'!D3 -> 0.0827 | J24: ='RD-07dual -T11'!D3 -> 0.0807
A25: Notes:
A26: - | B26: Due to flat topography of the area, no major cut/fill works have been included for road
A28: Landscaping
A29: 1 | B29: No landscaping allowed for other than topsoiling and seeding
A30: Preliminaries
A31: 2 | B31: Based on nominal rates
A32: Subsoil Drain
A33: 3 | B33: Assume same as kerb and channel
A34: Side Entry Pits
A35: 4 | B35: Based on 50 m intervals
A36: Tactile Pavers
A37: 5 | B37: Assume hazard TGSI's (no directional)
A38: Signing
A39: 6 | B39: Nominal rate
A40: Pavement
A41: 7 | B41: Assume deep lift asphalt pavement
A42: Tree Removal
A43: 8 | B43: Based on preliminary information/aerial photography
A44: Roads
A45: 9 | B45: Where applicable, existing road conditions based on limited crushed rock roads assumed to be of no consequence to works
A46: 10 | B46: Where applicable, existing asphalt roads to be demolished as part of intersection works
A47: Dry Stone Wall
A48: 11 | B48: Dry stone wall works allowance has assumed the wall is not heritage listed and does not need to be reconstructed
A49: Lighting
A50: 12 | B50: Based on 70 m intervals
A51: 375 RCP
A52: 13 | B52: Based on (road length + (No. of SEPs x 8.0m))
A54: AUTHOR: | B54: Graeme Stenton
A55: Date: | B55: 2014-12-18
A57: REVIEWER: | B57: Rob Henry
A58: Date:

Sheet RD-02-T10
A1: PRELIMINARY ESTIMATE OF DEVELOPMENT COSTS | G1: =Summary!A5 -> 2015-05-14
A2: =Summary!A3 -> CG140690 | G2: =Summary!A6 -> Version 4
A3: =Summary!A4 -> Wollert PSP - Roads Cost Estimate | C3: PM %: | D3: 0.0902
A4: Intersection Ref: | B4: =J7 -> RD-02 | E4: DRAFT | I4: Do not Delete the below info
A5: Sheet Ref: | B5: =Summary!C9 -> T10-02 & 03-P2
A6: ITEM | B6: DESCRIPTION | C6: QUANTITY | D6: UNIT | E6: RATE | F6: AMOUNT | G6: SUBTOTAL | I6: Sheet Specific Information | J6: Input | K6: Cell Reference
A7: A | B7: =Summary!B10 -> Project and Program Management (%) | G7: =SUM(F7:F14) -> 120901.9899 | I7: Intersection Name | J7: RD-02 | K7: A4
B8: Project Management | D8: 0.03 | E8: =($D$3/0.1)*D8 -> 0.02706 | F8: =E8*$G$24 -> 72541.19396 | I8: Existing road directions | J8: N-S | K8: B87
B9: Project scoping, planning, scheduling, monitoring, reporting and commissioning | I9: Previous Road area | J9: 0 | K9: m²
B10: Management of preconstruction activities, development of tender documents and management of contracts | I10: Total Roadway Area | J10: 3548 | K10: m²
B11: Managing external interfaces, including community liaison, environmental issues, traffic issues etc | I11: Island Area | J11: 0 | K11: m²
B12: Records management | I12: Kerb and Channel | J12: 530 | K12: Lm
B13: Program Administration | D13: 0.02 | E13: =($D$3/0.1)*D13 -> 0.01804 | F13: =E13*$G$24 -> 48360.79597 | I13: Shoulder | J13: 530 | K13: m²
I14: Footpath Length | J14: 0 | K14: Lm
A15: B | B15: =Summary!B11 -> Design and Investigation (%) | G15: =SUM(F15:F23) -> 241803.9799 | I15: Pipe Length | K15: Lm
B16: Traffic Investigations | D16: 0.0085 | E16: =($D$3/0.1)*D16 -> 0.007667 | F16: =E16*$G$24 -> 20553.33829 | I16: Island Concrete infill | J16: 0 | K16: m²
B17: Cadastral and Engineering Survey | D17: 0.012 | E17: 0.010824 | F17: 29016.47758 | I17: Shared Path Length | J17: 1060 | K17: Lm
B18: Geotechnical investigations Pavement Investigations and Design | D18: 0.012 | E18: 0.010824 | F18: 29016.47758 | I18: Total Road Length | J18: 530 | K18: Lm
B19: Environmental Investigations | E19: 0 | F19: 0
B20: Landscape Design | E20: 0 | F20: 0
B21: Preliminary and Final Design | D21: 0.0425 | E21: 0.038335 | F21: 102766.6914
B22: Construction Management | D22: 0.025 | E22: 0.02255 | F22: 60450.99497
I23: 2.5% of construction cost | J23: =0.025*G24 -> 67018.84143
A24: C | B24: Construction | F24: =SUM(F25:F85) -> 2680753.657 | G24: =SUM(G25:G84) -> 2680753.657
A25: 1 | B25: PRELIMINARIES | G25: =SUM(F25:F29) -> 156000
A26: 1.1 | B26: Site establishment | C26: 1 | D26: Item | E26: 10000 | F26: =E26*C26 -> 10000
A27: 1.2 | B27: Site management & supervision including QA | C27: 20 | D27: wks | E27: 2500 | F27: =SUM(E27*C27) -> 50000
A28: 1.3 | B28: Provision for traffic | C28: 1 | D28: Item | E28: =C27*6*800 -> 96000 | F28: =SUM(E28*C28) -> 96000
A29: 2 | B29: DEMOLITION | G29: =SUM(F29:F32) -> 0
A30: 2.1 | B30: Trees | C30: 0 | D30: No | E30: 500 | F30: =SUM(E30*C30) -> 0
A31: 2.2 | B31: Strip asphalt from existing pavement | C31: =J9 -> 0 | D31: m² | E31: 5 | F31: =SUM(E31*C31) -> 0
A32: 3 | B32: EARTHWORKS | G32: =SUM(F32:F39) -> 317377.3
A33: 3.1 | B33: Stripping topsoil (150mm) | C33: =J10+J12*1+J13*1.3-J11-J9 -> 4767 | D33: m² | E33: 6 | F33: =SUM(E33*C33) -> 28602
A34: 3.2 | B34: Excavation and removal (inc. reclamation of FCR) | C34: =C41*0.18 -> 667.26 | D34: m³ | E34: 30 | F34: =SUM(E34*C34) -> 20017.8
A35: 3.3 | B35: Filling | C35: =C41*0.71 -> 2631.97 | D35: m³ | E35: 15 | F35: =C35*E35 -> 39479.55
A36: 3.4 | B36: Import Fill material | C36: =C35-C34 -> 1964.71 | D36: m³ | E36: 45 | F36: =C36*E36 -> 88411.95
A37: 3.5 | B37: Soft spot rectification (reclaimed FCR) | C37: =C41*20% -> 741.4 | D37: m³ | E37: 15 | F37: =SUM(E37*C37) -> 11121
A38: 3.6 | B38: Rock excavation & sub-surface remediation 450mm | C38: =C41*50% -> 1853.5 | D38: m² | E38: =55+15 -> 70 | F38: =SUM(E38*C38) -> 129745
A39: 4 | B39: PAVEMENT | G39: =SUM(F39:F43) -> 597625
A40: 4.1 | B40: Deep lift asphalt 195 mm | C40: =J10-J13-J11 -> 3018 | D40: m² | E40: =IF(C40<15000,105,85) -> 105 | F40: =SUM(E40*C40) -> 316890
A41: 4.2 | B41: Subbase course - 250 mm 3% CTCR | C41: =C40+(J12*1)+C42*0.3 -> 3707 | D41: m² | E41: =IF(C41<15000,55,45) -> 55 | F41: =SUM(E41*C41) -> 203885
A42: 4.3 | B42: Shoulder - full depth pavement | C42: =J13 -> 530 | D42: m² | E42: 145 | F42: =SUM(E42*C42) -> 76850
A43: 5 | B43: DRAINAGE | G43: =SUM(F43:F48) -> 162816
A44: 5.1 | B44: Subsoil drains 100mm dia - screenings | C44: =J12+J13 -> 1060 | D44: Lm | E44: 30 | F44: =SUM(E44*C44) -> 31800
A45: 5.2 | B45: Subsoil drains 100mm dia - no fines conc | C45: 0 | D45: Lm | E45: 45 | F45: =SUM(E45*C45) -> 0
A46: 5.3 | B46: 375 RCP (class 2) | C46: =J18+(C47*8) -> 614.8 | D46: Lm | E46: 170 | F46: =SUM(E46*C46) -> 104516
A47: 5.4 | B47: Side entry pits | C47: =J12/50 -> 10.6 | D47: No | E47: 2500 | F47: =SUM(E47*C47) -> 26500
A48: 5.5 | B48: Allowance to modify draiange to ultimate location | D48: item | E48: =14*(2500+2000+10*E46) -> 86800 | F48: =SUM(E48*C48) -> 0
A49: 6 | B49: CONCRETE WORKS | G49: =SUM(F49:F54) -> 164300
A50: 6.1 | B50: Kerb &channel | C50: =J12 -> 530 | D50: Lm | E50: 50 | F50: =SUM(E50*C50) -> 26500
A51: 6.2 | B51: Shared Paths (3.0m wide,125 mm, residential, as per MPA) | C51: =J17 -> 1060 | D51: Lm | E51: 130 | F51: 137800
A52: 6.3 | B52: Footpaths (1.5m wide,125 mm, residential, as per MPA) | C52: =J14 -> 0 | D52: No | E52: 65 | F52: 0
A53: 6.4 | B53: Laybacks and tactile pavers | C53: 0 | D53: m² | E53: 1200 | F53: 0
A54: 6.5 | B54: 10m concrete maintenance area end of all islands | C54: =J16 -> 0 | D54: m² | E54: 85 | F54: 0
A55: 7 | B55: TRAFFIC SIGNAL WORKS | D55: NA | G55: =SUM(F55:F55) -> 0
A56: 8 | B56: SIGNAL MAINTENANCE (10 YEARS) by Road Authority | D56: NA | F56: =SUM(E56*C56) -> 0 | G56: =F56 -> 0
A57: 9 | B57: POWER & LIGHTING | G57: =SUM(F58:F63) -> 122892.8571
A58: 9.1 | B58: Light pole (1-way) and luminous lights | C58: 0 | D58: No | E58: 8000 | F58: 0
A59: 9.2 | B59: Light pole (2-way) and luminous lights | C59: =J18/70 -> 7.571428571 | D59: No | E59: 9000 | F59: 68142.85714
A60: 9.3 | B60: JUP lighting single | C60: 0 | D60: No | E60: 4000 | F60: 0
A61: 9.4 | B61: JUP lighting dual | C61: 0 | D61: No | E61: 5000 | F61: 0
A62: 9.5 | B62: Cabling, conduits and pits | C62: =J18 -> 530 | D62: Lm | E62: 75 | F62: 39750
A63: 9.6 | B63: Electrical connection | C63: 1 | D63: Item | E63: 15000 | F63: 15000
A64: 10 | B64: LANDSCAPING WORKS | G64: =SUM(F64:F66) -> 83342.5
A65: 10.1 | B65: Topsoiling seeding | C65: =SUM(J13,J17)*6+J12*0.5+J11-J16 -> 9805 | D65: m² | E65: 8.5 | F65: =SUM(E65*C65) -> 83342.5
A66: 10.2 | B66: Landcape planting | C66: 0 | D66: NA
A67: 11 | B67: SIGNING | C67: 1 | D67: item | E67: 10000 | F67: 10000 | G67: =F67 -> 10000
A68: 12 | B68: LINEMARKING (Thermoplastic) | C68: 1 | D68: item | E68: 30000 | F68: 30000 | G68: =F68 -> 30000
A69: 13 | B69: SERVICES | G69: =SUM(F69:F77) -> 1036400
A70: 13.1 | B70: Water supply main, 300 mm | C70: =$J$18 -> 530 | D70: Lm | E70: 350 | F70: =SUM(E70*C70) -> 185500
A71: 13.2 | B71: Gas supply main 150 mm | C71: =$J$18 -> 530 | D71: Lm | E71: 180 | F71: =SUM(E71*C71) -> 95400
A72: 13.3 | B72: Telco Pit and Pipe (Assume 3x100mm) | C72: 530 | D72: Lm | E72: 120 | F72: =SUM(E72*C72) -> 63600
A73: 13.4 | B73: Sewer main 300 mm (Assume Gravity + FCR Backfill) | C73: 530 | D73: Lm | E73: 450 | F73: 238500
A74: 13.5 | B74: UG electrical (HV + LV) | C74: 530 | D74: Lm | E74: 300 | F74: =SUM(E74*C74) -> 159000
A75: 13.6 | B75: Water supply main (RECYCLED), 300 mm | C75: 530 | D75: Lm | E75: 350 | F75: =SUM(E75*C75) -> 185500
A76: 13.7 | B76: Transmission pipleline slab protection 200mm | C76: =330*2 -> 660 | D76: m² | E76: 165 | F76: =C76*E76 -> 108900
A77: 13.8 | B77: (Overhead electrical) No allowance | C77: 0 | D77: Lm | F77: =SUM(E77*C77) -> 0
A78: 14 | B78: MISCELLANEOUS | G78: =SUM(F78:F83) -> 0
B79: Exisiting Road outside of new road pavements
A80: 14.1 | B80: Strip asphalt | C80: =J9 -> 0 | D80: m² | E80: 5 | F80: =SUM(E80*C80) -> 0
A81: 14.2 | B81: Recycle FCR to stockpile | C81: =C80*0.3 -> 0 | D81: m³ | E81: 10 | F81: =SUM(E81*C81) -> 0
A82: 14.3 | B82: backfill with structural fill | C82: =C80*0.5 -> 0 | D82: m³ | E82: 12 | F82: =SUM(E82*C82) -> 0
A83: 14.4 | B83: Topsoiling | C83: =C80 -> 0 | D83: m² | E83: 8.5 | F83: =SUM(E83*C83) -> 0
A84: 15 | B84: PROVISIONAL SUM - DAYWORK | D84: item | F84: =SUM(E84*C84) -> 0 | G84: =F84 -> 0
B86: TOTAL A - C | F86: =SUM(F25:F85,F7:F23) -> 3043459.627 | G86: =SUM(G24+G15+G7) -> 3043459.627
A88: D | B88: Contingency
B89: =Summary!B17 -> Contingency (15% of C) | F89: 0.15 | G89: =F89*G24 -> 402113.0486
A91: E | B91: PROJECT BUDGET
B92: Total Estimate | G92: =G89+G86 -> 3445572.676
B93: Total Estimate per linear metre | G93: =G92/J18 -> 6501.08052
A95: Notes:
A96: - | B96: Koukoura Road earthworks based on a concept vertical grade alignment
A98: Services
A99: 1 | B99: Basic supply infrastructure has been included for Gas, Telco, Sewer, Water, U/G HV & LV elect have been incorporated for the road sections
A100: 2 | B100: No allowance for water, gas, telstra, sewer
A101: Substations
A102: 3 | B102: No allowance for substations
A103: Preliminaries
A104: 4 | B104: Based on nominal rates
A105: Subsoil Drain
A106: 5 | B106: Assume same as kerb and channel
A107: Side Entry Pits
A108: 6 | B108: Based on 50 m intervals
A109: Tactile Pavers
A110: 7 | B110: Assume hazard TGSI's (no directional)
A111: Signing
A112: 8 | B112: Nominal rate
A113: Pavement
A114: 9 | B114: Assume deep lift asphalt pavement
A115: Tree Removal
A116: 10 | B116: Based on preliminary information
A117: Roads
A118: 11 | B118: Where applicable, existing asphalt roads to be demolished as part of intersection works
A123: AUTHOR: | B123: Graeme Stenton
A124: Date: | B124: 2014-12-16
A126: REVIEWER: | B126: Rob Henry
A127: Date:

Sheet RD-03-T10
A1: PRELIMINARY ESTIMATE OF DEVELOPMENT COSTS | G1: =Summary!A5 -> 2015-05-14
A2: =Summary!A3 -> CG140690 | G2: =Summary!A6 -> Version 4
A3: =Summary!A4 -> Wollert PSP - Roads Cost Estimate | C3: PM %: | D3: 0.0848
A4: Intersection Ref: | B4: =J7 -> RD-03 | E4: DRAFT | I4: Do not Delete the below info
A5: Sheet Ref: | B5: =Summary!D9 -> T10-03 & 04-P2
A6: ITEM | B6: DESCRIPTION | C6: QUANTITY | D6: UNIT | E6: RATE | F6: AMOUNT | G6: SUBTOTAL | I6: Sheet Specific Information | J6: Input | K6: Cell Reference
A7: A | B7: =Summary!B10 -> Project and Program Management (%) | G7: =SUM(F7:F14) -> 186694.1179 | I7: Intersection Name | J7: RD-03 | K7: A4
B8: Project Management | D8: 0.03 | E8: =($D$3/0.1)*D8 -> 0.02544 | F8: =E8*$G$24 -> 112016.4708 | I8: Existing road directions | J8: N-S | K8: B87
B9: Project scoping, planning, scheduling, monitoring, reporting and commissioning | I9: Previous Road area | J9: 0 | K9: m²
B10: Management of preconstruction activities, development of tender documents and management of contracts | I10: Total Roadway Area | J10: 6299 | K10: m²
B11: Managing external interfaces, including community liaison, environmental issues, traffic issues etc | I11: Island Area | J11: 0 | K11: m²
B12: Records management | I12: Kerb and Channel | J12: 895 | K12: Lm
B13: Program Administration | D13: 0.02 | E13: =($D$3/0.1)*D13 -> 0.01696 | F13: =E13*$G$24 -> 74677.64717 | I13: Shoulder | J13: 894 | K13: m²
I14: Footpath Length | J14: 0 | K14: Lm
A15: B | B15: =Summary!B11 -> Design and Investigation (%) | G15: =SUM(F15:F23) -> 373388.2358 | I15: Pipe Length | K15: Lm
B16: Traffic Investigations | D16: 0.0085 | E16: =($D$3/0.1)*D16 -> 0.007208 | F16: =E16*$G$24 -> 31738.00005 | I16: Island Concrete infill | J16: 0 | K16: m²
B17: Cadastral and Engineering Survey | D17: 0.012 | E17: 0.010176 | F17: 44806.5883 | I17: Shared Path Length | J17: 1785 | K17: Lm
B18: Geotechnical investigations Pavement Investigations and Design | D18: 0.012 | E18: 0.010176 | F18: 44806.5883 | I18: Total Road Length | J18: 895 | K18: Lm
B19: Environmental Investigations | E19: 0 | F19: 0
B20: Landscape Design | E20: 0 | F20: 0
B21: Preliminary and Final Design | D21: 0.0425 | E21: 0.03604 | F21: 158690.0002
B22: Construction Management | D22: 0.025 | E22: 0.0212 | F22: 93347.05896
I23: 2.5% of construction cost | J23: =0.025*G24 -> 110079.079
A24: C | B24: Construction | F24: =SUM(F25:F84) -> 4403163.159 | G24: =SUM(G25:G83) -> 4403163.159
A25: 1 | B25: PRELIMINARIES | G25: =SUM(F25:F28) -> 156000
A26: 1.1 | B26: Site establishment | C26: 1 | D26: Item | E26: 10000 | F26: =E26*C26 -> 10000
A27: 1.2 | B27: Site management & supervision including QA | C27: 20 | D27: wks | E27: 2500 | F27: =SUM(E27*C27) -> 50000
A28: 1.3 | B28: Provision for traffic | C28: 1 | D28: Item | E28: =C27*6*800 -> 96000 | F28: =SUM(E28*C28) -> 96000
A29: 2 | B29: DEMOLITION | G29: =SUM(F29:F32) -> 0
A30: 2.1 | B30: Trees | C30: 0 | D30: No | E30: 500 | F30: =SUM(E30*C30) -> 0
A31: 2.2 | B31: Strip asphalt from existing pavement | C31: =J9 -> 0 | D31: m² | E31: 5 | F31: =SUM(E31*C31) -> 0
A32: 3 | B32: EARTHWORKS | G32: =SUM(F32:F38) -> 331912.98
A33: 3.1 | B33: Stripping topsoil (150mm) | C33: =J10+J12*1+J13*1.3-J11-J9 -> 8356.2 | D33: m² | E33: 6 | F33: =SUM(E33*C33) -> 50137.2
A34: 3.2 | B34: Excavation and removal (inc. reclamation of FCR) | C34: =C40*0.18 -> 1182.276 | D34: m³ | E34: 30 | F34: =SUM(E34*C34) -> 35468.28
A35: 3.3 | B35: Filling | C35: =C40*0.71 -> 4663.422 | D35: m³ | E35: 15 | F35: =C35*E35 -> 69951.33
A36: 3.4 | B36: Import Fill material | C36: =C35-C34 -> 3481.146 | D36: m³ | E36: 45 | F36: =C36*E36 -> 156651.57
A37: 3.3 | B37: Soft spot rectification (reclaimed FCR) | C37: =C40*20% -> 1313.64 | D37: m³ | E37: 15 | F37: =SUM(E37*C37) -> 19704.6
A38: 4 | B38: PAVEMENT | G38: =SUM(F38:F42) -> 1419657
A39: 4.1 | B39: Deep lift asphalt 195 mm | C39: =J10-J13-J11 -> 5405 | D39: m² | E39: =IF(C39<15000,105,85) -> 105 | F39: =SUM(E39*C39) -> 567525
A40: 4.2 | B40: Subbase course - 250 mm 3% CTCR | C40: =C39+(J12*1)+C41*0.3 -> 6568.2 | D40: m² | E40: =IF(C40<15000,55,45) -> 55 | F40: =SUM(E40*C40) -> 361251
A41: 4.3 | B41: Shoulder - full depth pavement | C41: =J13 -> 894 | D41: m² | E41: 145 | F41: =SUM(E41*C41) -> 129630
A42: 4.4 | B42: Rock excavation & sub-surface remediation 450mm | C42: =C40 -> 6568.2 | D42: m² | E42: 55 | F42: =SUM(E42*C42) -> 361251
A43: 5 | B43: DRAINAGE | G43: =SUM(F43:F48) -> 274914
A44: 5.1 | B44: Subsoil drains 100mm dia - screenings | C44: =J12+J13 -> 1789 | D44: Lm | E44: 30 | F44: =SUM(E44*C44) -> 53670
A45: 5.2 | B45: Subsoil drains 100mm dia - no fines conc | C45: 0 | D45: Lm | E45: 45 | F45: 0
A46: 5.3 | B46: 375 RCP (class 2) | C46: =J18+(C47*8) -> 1038.2 | D46: Lm | E46: 170 | F46: 176494
A47: 5.4 | B47: Side entry pits | C47: =J12/50 -> 17.9 | D47: No | E47: 2500 | F47: 44750
A48: 5.5 | B48: Allowance to modify draiange to ultimate location | D48: item | E48: =14*(2500+2000+10*E46) -> 86800 | F48: 0
A49: 6.6 | B49: Transmission pipleline slab protection 200mm | C49: 0 | D49: m | E49: 130 | F49: 0
A50: 6 | B50: CONCRETE WORKS | G50: =SUM(F50:F55) -> 276800
A51: 6.1 | B51: Kerb &channel | C51: =J12 -> 895 | D51: Lm | E51: 50 | F51: =SUM(E51*C51) -> 44750
A52: 6.2 | B52: Shared Paths (3.0m wide,125 mm, residential, as per MPA) | C52: =J17 -> 1785 | D52: Lm | E52: 130 | F52: =SUM(E52*C52) -> 232050
A53: 6.3 | B53: Footpaths (1.5m wide,125 mm, residential, as per MPA) | C53: =J14 -> 0 | D53: No | E53: 65 | F53: =SUM(E53*C53) -> 0
A54: 6.4 | B54: Laybacks and tactile pavers | C54: 0 | D54: m² | E54: 1200 | F54: =SUM(E54*C54) -> 0
A55: 6.5 | B55: 10m concrete maintenance area end of all islands | C55: =J16 -> 0 | D55: m² | E55: 85 | F55: =SUM(E55*C55) -> 0
A56: 7 | B56: TRAFFIC SIGNAL WORKS | D56: NA | G56: =SUM(F56:F56) -> 0
A57: 8 | B57: SIGNAL MAINTENANCE (10 YEARS) by Road Authority | D57: NA | F57: =SUM(E57*C57) -> 0 | G57: =F57 -> 0
A58: 9 | B58: POWER & LIGHTING | G58: =SUM(F59:F64) -> 197196.4286
A59: 9.1 | B59: Light pole (1-way) and luminous lights | C59: 0 | D59: No | E59: 8000 | F59: 0
A60: 9.2 | B60: Light pole (2-way) and luminous lights | C60: =J18/70 -> 12.78571429 | D60: No | E60: 9000 | F60: 115071.4286
A61: 9.3 | B61: JUP lighting single | C61: 0 | D61: No | E61: 4000 | F61: 0
A62: 9.4 | B62: JUP lighting dual | C62: 0 | D62: No | E62: 5000 | F62: 0
A63: 9.5 | B63: Cabling, conduits and pits | C63: =J18 -> 895 | D63: Lm | E63: 75 | F63: 67125
A64: 9.6 | B64: Electrical connection | C64: 1 | D64: Item | E64: 15000 | F64: 15000
A65: 10 | B65: LANDSCAPING WORKS | G65: =SUM(F65:F66) -> 140432.75
A66: 10.1 | B66: Topsoiling seeding | C66: =SUM(J13,J17)*6+J12*0.5+J11-J16 -> 16521.5 | D66: m² | E66: 8.5 | F66: =SUM(E66*C66) -> 140432.75
A67: 11 | B67: SIGNING | C67: 1 | D67: item | E67: 10000 | F67: 10000 | G67: =F67 -> 10000
A68: 12 | B68: LINEMARKING (Thermoplastic) | C68: 1 | D68: item | E68: 30000 | F68: 30000 | G68: =F68 -> 30000
A69: 13 | B69: SERVICE RELOCATION | G69: =SUM(F69:F76) -> 1566250
A70: 13.1 | B70: Water supply main, 300 mm | C70: =$J$18 -> 895 | D70: Lm | E70: 350 | F70: =SUM(E70*C70) -> 313250
A71: 13.2 | B71: Gas supply main 150 mm | C71: =$J$18 -> 895 | D71: Lm | E71: 180 | F71: =SUM(E71*C71) -> 161100
A72: 13.3 | B72: Telco Pit and Pipe (Assume 3x100mm) | C72: 895 | D72: Lm | E72: 120 | F72: =SUM(E72*C72) -> 107400
A73: 13.4 | B73: Sewer main 300 mm (Assume Gravity + FCR Backfill) | C73: 895 | D73: Lm | E73: 450 | F73: 402750
A74: 13.5 | B74: UG electrical (HV + LV) | C74: 895 | D74: Lm | E74: 300 | F74: =SUM(E74*C74) -> 268500
A75: 13.6 | B75: Water supply main (RECYCLED), 300 mm | C75: 895 | D75: Lm | E75: 350 | F75: =SUM(E75*C75) -> 313250
A76: 13.7 | B76: (Overhead electrical) No allowance | C76: 0 | D76: Lm | F76: =SUM(E76*C76) -> 0
A77: 14 | B77: MISCELLANEOUS | G77: =SUM(F77:F82) -> 0
B78: Exisiting Road outside of new road pavements
A79: 14.1 | B79: Strip asphalt | C79: =J9 -> 0 | D79: m² | E79: 5 | F79: =SUM(E79*C79) -> 0
A80: 14.2 | B80: Recycle FCR to stockpile | C80: =C79*0.3 -> 0 | D80: m³ | E80: 10 | F80: =SUM(E80*C80) -> 0
A81: 14.3 | B81: backfill with structural fill | C81: =C79*0.5 -> 0 | D81: m³ | E81: 12 | F81: =SUM(E81*C81) -> 0
A82: 14.4 | B82: Topsoiling | C82: =C79 -> 0 | D82: m² | E82: 8.5 | F82: =SUM(E82*C82) -> 0
A83: 15 | B83: PROVISIONAL SUM - DAYWORK | D83: item | F83: 0 | G83: =F83 -> 0
B85: TOTAL A - C | F85: =SUM(F25:F84,F7:F23) -> 4963245.512 | G85: =SUM(G24+G15+G7) -> 4963245.512
A87: D | B87: Contingency
B88: =Summary!B17 -> Contingency (15% of C) | F88: 0.15 | G88: =F88*G24 -> 660474.4738
A90: E | B90: PROJECT BUDGET
B91: Total Estimate | G91: =G88+G85 -> 5623719.986
B92: Total Estimate per linear metre | G92: =G91/J18 -> 6283.486018
A94: Notes:
A95: - | B95: Koukoura Road earthworks based on a concept vertical grade alignment
A97: Services
A98: 1 | B98: Basic supply infrastructure has been included for Gas, Telco, Sewer, Water, U/G HV & LV elect have been incorporated for the road sections
A99: 2 | B99: No allowance for water, gas, telstra, sewer
A100: Substations
A101: 3 | B101: No allowance for substations
A102: Preliminaries
A103: 4 | B103: Based on nominal rates
A104: Subsoil Drain
A105: 5 | B105: Assume same as kerb and channel
A106: Side Entry Pits
A107: 6 | B107: Based on 50 m intervals
A108: Tactile Pavers
A109: 7 | B109: Assume hazard TGSI's (no directional)
A110: Signing
A111: 8 | B111: Nominal rate
A112: Pavement
A113: 9 | B113: Assume deep lift asphalt pavement
A114: Tree Removal
A115: 10 | B115: Based on preliminary information
A116: Roads
A117: 11 | B117: Where applicable, existing asphalt roads to be demolished as part of intersection works
A122: AUTHOR: | B122: Graeme Stenton
A123: Date: | B123: 2014-12-16
A125: REVIEWER: | B125: Rob Henry
A126: Date:

Sheet RD-04-T10
A1: PRELIMINARY ESTIMATE OF DEVELOPMENT COSTS | G1: =Summary!A5 -> 2015-05-14
A2: =Summary!A3 -> CG140690 | G2: =Summary!A6 -> Version 4
A3: =Summary!A4 -> Wollert PSP - Roads Cost Estimate | C3: PM %: | D3: 0.0865
A4: Intersection Ref: | B4: =J7 -> RD-04 | E4: DRAFT | I4: Do not Delete the below info
A5: Sheet Ref: | B5: =Summary!E9 -> T10-04 & 05-P2
A6: ITEM | B6: DESCRIPTION | C6: QUANTITY | D6: UNIT | E6: RATE | F6: AMOUNT | G6: SUBTOTAL | I6: Sheet Specific Information | J6: Input | K6: Cell Reference
A7: A | B7: =Summary!B10 -> Project and Program Management (%) | G7: =SUM(F7:F14) -> 161831.7305 | I7: Intersection Name | J7: RD-04 | K7: A4
B8: Project Management | D8: 0.03 | E8: =($D$3/0.1)*D8 -> 0.02595 | F8: =E8*$G$24 -> 97099.0383 | I8: Existing road directions | J8: N-S | K8: B87
B9: Project scoping, planning, scheduling, monitoring, reporting and commissioning | I9: Previous Road area | J9: 0 | K9: m²
B10: Management of preconstruction activities, development of tender documents and management of contracts | I10: Total Roadway Area | J10: 5129 | K10: m²
B11: Managing external interfaces, including community liaison, environmental issues, traffic issues etc | I11: Island Area | J11: 0 | K11: m²
B12: Records management | I12: Kerb and Channel | J12: 767 | K12: Lm
B13: Program Administration | D13: 0.02 | E13: =($D$3/0.1)*D13 -> 0.0173 | F13: =E13*$G$24 -> 64732.6922 | I13: Shoulder | J13: 764 | K13: m²
I14: Footpath Length | J14: 0 | K14: Lm
A15: B | B15: =Summary!B11 -> Design and Investigation (%) | G15: =SUM(F15:F23) -> 323663.461 | I15: Pipe Length | K15: Lm
B16: Traffic Investigations | D16: 0.0085 | E16: =($D$3/0.1)*D16 -> 0.0073525 | F16: =E16*$G$24 -> 27511.39419 | I16: Island Concrete infill | J16: 0 | K16: m²
B17: Cadastral and Engineering Survey | D17: 0.012 | E17: 0.01038 | F17: 38839.61532 | I17: Shared Path Length | J17: 1531 | K17: Lm
B18: Geotechnical investigations Pavement Investigations and Design | D18: 0.012 | E18: 0.01038 | F18: 38839.61532 | I18: Total Road Length | J18: 767 | K18: Lm
B19: Environmental Investigations | E19: 0 | F19: 0
B20: Landscape Design | E20: 0 | F20: 0
B21: Preliminary and Final Design | D21: 0.0425 | E21: 0.0367625 | F21: 137556.9709
B22: Construction Management | D22: 0.025 | E22: 0.021625 | F22: 80915.86525
I23: 2.5% of construction cost | J23: =0.025*G24 -> 93544.35289
A24: C | B24: Construction | F24: =SUM(F25:F83) -> 3741774.116 | G24: =SUM(G25:G82) -> 3741774.116
A25: 1 | B25: PRELIMINARIES | G25: =SUM(F25:F28) -> 156000
A26: 1.1 | B26: Site establishment | C26: 1 | D26: Item | E26: 10000 | F26: =E26*C26 -> 10000
A27: 1.2 | B27: Site management & supervision including QA | C27: 20 | D27: wks | E27: 2500 | F27: =SUM(E27*C27) -> 50000
A28: 1.3 | B28: Provision for traffic | C28: 1 | D28: Item | E28: =C27*6*800 -> 96000 | F28: =SUM(E28*C28) -> 96000
A29: 2 | B29: DEMOLITION | G29: =SUM(F29:F32) -> 2500
A30: 2.1 | B30: Trees | C30: 5 | D30: No | E30: 500 | F30: =SUM(E30*C30) -> 2500
A31: 2.2 | B31: Strip asphalt from existing pavement | C31: =J9 -> 0 | D31: m² | E31: 5 | F31: =SUM(E31*C31) -> 0
A32: 3 | B32: EARTHWORKS | G32: =SUM(F32:F38) -> 271330.68
A33: 3.1 | B33: Stripping topsoil (150mm) | C33: =J10+J12*1+J13*1.3-J11-J9 -> 6889.2 | D33: m² | E33: 6 | F33: =SUM(E33*C33) -> 41335.2
A34: 3.2 | B34: Excavation and removal (inc. reclamation of FCR) | C34: =C40*0.18 -> 965.016 | D34: m³ | E34: 30 | F34: =SUM(E34*C34) -> 28950.48
A35: 3.3 | B35: Filling | C35: =C40*0.71 -> 3806.452 | D35: m³ | E35: 15 | F35: =C35*E35 -> 57096.78
A36: 3.4 | B36: Import Fill material | C36: =C35-C34 -> 2841.436 | D36: m³ | E36: 45 | F36: =C36*E36 -> 127864.62
A37: 3.5 | B37: Soft spot rectification (reclaimed FCR) | C37: =C40*20% -> 1072.24 | D37: m³ | E37: 15 | F37: =SUM(E37*C37) -> 16083.6
A38: 4 | B38: PAVEMENT | G38: =SUM(F38:F42) -> 1158837
A39: 4.1 | B39: Deep lift asphalt 195 mm | C39: =J10-J13-J11 -> 4365 | D39: m² | E39: =IF(C39<15000,105,85) -> 105 | F39: =SUM(E39*C39) -> 458325
A40: 4.2 | B40: Subbase course - 250 mm 3% CTCR | C40: =C39+(J12*1)+C41*0.3 -> 5361.2 | D40: m² | E40: =IF(C40<15000,55,45) -> 55 | F40: =SUM(E40*C40) -> 294866
A41: 4.3 | B41: Shoulder - full depth pavement | C41: =J13 -> 764 | D41: m² | E41: 145 | F41: =SUM(E41*C41) -> 110780
A42: 4.4 | B42: Rock excavation & sub-surface remediation 450mm | C42: =C40 -> 5361.2 | D42: m² | E42: 55 | F42: =SUM(E42*C42) -> 294866
A43: 5 | B43: DRAINAGE | G43: =SUM(F43:F48) -> 235532.4
A44: 5.1 | B44: Subsoil drains 100mm dia - screenings | C44: =J12+J13 -> 1531 | D44: Lm | E44: 30 | F44: =SUM(E44*C44) -> 45930
A45: 5.2 | B45: Subsoil drains 100mm dia - no fines conc | C45: 0 | D45: Lm | E45: 45 | F45: =SUM(E45*C45) -> 0
A46: 5.3 | B46: 375 RCP (class 2) | C46: =J18+(C47*8) -> 889.72 | D46: Lm | E46: 170 | F46: =SUM(E46*C46) -> 151252.4
A47: 5.4 | B47: Side entry pits | C47: =J12/50 -> 15.34 | D47: No | E47: 2500 | F47: =SUM(E47*C47) -> 38350
A48: 5.5 | B48: Allowance to modify draiange to ultimate location | D48: item | E48: =14*(2500+2000+10*E46) -> 86800 | F48: =SUM(E48*C48) -> 0
A49: 6 | B49: CONCRETE WORKS | G49: =SUM(F49:F55) -> 243880
A50: 6.1 | B50: Kerb &channel | C50: =J12 -> 767 | D50: Lm | E50: 50 | F50: =SUM(E50*C50) -> 38350
A51: 6.2 | B51: Shared Paths (3.0m wide,125 mm, residential, as per MPA) | C51: =J17 -> 1531 | D51: Lm | E51: 130 | F51: 199030
A52: 6.3 | B52: Footpaths (1.5m wide,125 mm, residential, as per MPA) | C52: =J14 -> 0 | D52: No | E52: 65 | F52: 0
A53: 6.4 | B53: Laybacks and tactile pavers | C53: 0 | D53: m² | E53: 1200 | F53: 0
A54: 6.5 | B54: 10m concrete maintenance area end of all islands | C54: =J16 -> 0 | D54: m² | E54: 85 | F54: 0
A55: 6.6 | B55: Transmission pipleline slab protection 200mm | C55: 50 | D55: m | E55: 130 | F55: 6500
A56: 7 | B56: TRAFFIC SIGNAL WORKS | D56: NA | G56: =SUM(F56:F56) -> 0
A57: 8 | B57: SIGNAL MAINTENANCE (10 YEARS) by Road Authority | D57: NA | G57: =F57 -> 0
A58: 9 | B58: POWER & LIGHTING | G58: =SUM(F59:F64) -> 171139.2857
A59: 9.1 | B59: Light pole (1-way) and luminous lights | C59: 0 | D59: NA | F59: =SUM(E59*C59) -> 0
A60: 9.2 | B60: Light pole (2-way) and luminous lights | C60: =J18/70 -> 10.95714286 | D60: No | E60: 9000 | F60: =SUM(E60*C60) -> 98614.28571
A61: 9.3 | B61: JUP lighting single | C61: 0 | D61: No | E61: 4000 | F61: =SUM(E61*C61) -> 0
A62: 9.4 | B62: JUP lighting dual | C62: 0 | D62: No | E62: 5000 | F62: 0
A63: 9.5 | B63: Cabling, conduits and pits | C63: =J18 -> 767 | D63: Lm | E63: 75 | F63: 57525
A64: 9.6 | B64: Electrical connection | C64: 1 | D64: Item | E64: 15000 | F64: 15000
A65: 10 | B65: LANDSCAPING WORKS | G65: =SUM(F65:F66) -> 120304.75
A66: 10.1 | B66: Topsoiling seeding | C66: =SUM(J13,J17)*6+J12*0.5+J11-J16 -> 14153.5 | D66: m² | E66: 8.5 | F66: =SUM(E66*C66) -> 120304.75
A67: 11 | B67: SIGNING | C67: 1 | D67: item | E67: 10000 | F67: 10000 | G67: =F67 -> 10000
A68: 12 | B68: LINEMARKING (Thermoplastic) | C68: 1 | D68: item | E68: 30000 | F68: 30000 | G68: =F68 -> 30000
A69: 13 | B69: SERVICE RELOCATION | G69: =SUM(F69:F76) -> 1342250
A70: 13.1 | B70: Water supply main, 300 mm | C70: =$J$18 -> 767 | D70: Lm | E70: 350 | F70: =SUM(E70*C70) -> 268450
A71: 13.2 | B71: Gas supply main 150 mm | C71: =$J$18 -> 767 | D71: Lm | E71: 180 | F71: =SUM(E71*C71) -> 138060
A72: 13.3 | B72: Telco Pit and Pipe (Assume 3x100mm) | C72: 767 | D72: Lm | E72: 120 | F72: =SUM(E72*C72) -> 92040
A73: 13.4 | B73: Sewer main 300 mm (Assume Gravity + FCR Backfill) | C73: 767 | D73: Lm | E73: 450 | F73: 345150
A74: 13.5 | B74: UG electrical (HV + LV) | C74: 767 | D74: Lm | E74: 300 | F74: =SUM(E74*C74) -> 230100
A75: 13.6 | B75: Water supply main (RECYCLED), 300 mm | C75: 767 | D75: Lm | E75: 350 | F75: =SUM(E75*C75) -> 268450
A76: 13.7 | B76: (Overhead electrical) No allowance | C76: 0 | D76: Item | E76: 0 | F76: =SUM(E76*C76) -> 0
A77: 14 | B77: MISCELLANEOUS | G77: =SUM(F77:F81) -> 0
B78: Exisiting Road outside of new road pavements
A79: 14.1 | B79: Strip asphalt | C79: =J9 -> 0 | D79: m² | E79: 5 | F79: =SUM(E79*C79) -> 0
A80: 14.2 | B80: Recycle FCR to stockpile | C80: =C79*0.3 -> 0 | D80: m³ | E80: 10 | F80: =SUM(E80*C80) -> 0
A81: 14.3 | B81: backfill with structural fill | C81: =C79*0.5 -> 0 | D81: m³ | E81: 12 | F81: =SUM(E81*C81) -> 0
A82: 15 | B82: PROVISIONAL SUM - DAYWORK | D82: item | F82: =SUM(E82*C82) -> 0 | G82: =F82 -> 0
B84: TOTAL A - C | F84: =SUM(F25:F83,F7:F23) -> 4227269.307 | G84: =SUM(G24+G15+G7) -> 4227269.307
A86: D | B86: Contingency
B87: =Summary!B17 -> Contingency (15% of C) | F87: 0.15 | G87: =F87*G24 -> 561266.1174
A89: E | B89: PROJECT BUDGET
B90: Total Estimate | G90: =G87+G84 -> 4788535.425
B91: Total Estimate per linear metre | G91: =G90/J18 -> 6243.201336
A93: Notes:
A94: - | B94: Koukoura Road earthworks based on a concept vertical grade alignment
A96: Services
A97: 1 | B97: Basic supply infrastructure has been included for Gas, Telco, Sewer, Water, U/G HV & LV elect have been incorporated for the road sections
A98: 2 | B98: No allowance for water, gas, telstra, sewer
A99: Substations
A100: 3 | B100: No allowance for substations
A101: Preliminaries
A102: 4 | B102: Based on nominal rates
A103: Subsoil Drain
A104: 5 | B104: Assume same as kerb and channel
A105: Side Entry Pits
A106: 6 | B106: Based on 50 m intervals
A107: Tactile Pavers
A108: 7 | B108: Assume hazard TGSI's (no directional)
A109: Signing
A110: 8 | B110: Nominal rate
A111: Pavement
A112: 9 | B112: Assume deep lift asphalt pavement
A113: Tree Removal
A114: 10 | B114: Based on preliminary information
A115: Roads
A116: 11 | B116: Where applicable, existing asphalt roads to be demolished as part of intersection works
A121: AUTHOR: | B121: Graeme Stenton
A122: Date: | B122: 2014-12-16
A124: REVIEWER: | B124: Rob Henry
A125: Date:

Sheet RD-05-T10
A1: PRELIMINARY ESTIMATE OF DEVELOPMENT COSTS | G1: =Summary!A5 -> 2015-05-14
A2: =Summary!A3 -> CG140690 | G2: =Summary!A6 -> Version 4
A3: =Summary!A4 -> Wollert PSP - Roads Cost Estimate | C3: PM %: | D3: 0.0842
A4: Intersection Ref: | B4: =J7 -> RD-05 | E4: DRAFT | I4: Do not Delete the below info
A5: Sheet Ref: | B5: =Summary!F9 -> T10-06 & 07-P2
A6: ITEM | B6: DESCRIPTION | C6: QUANTITY | D6: UNIT | E6: RATE | F6: AMOUNT | G6: SUBTOTAL | I6: Sheet Specific Information | J6: Input | K6: Cell Reference
A7: A | B7: =Summary!B10 -> Project and Program Management (%) | G7: =SUM(F7:F14) -> 194967.7749 | I7: Intersection Name | J7: RD-05 | K7: A4
B8: Project Management | D8: 0.03 | E8: =($D$3/0.1)*D8 -> 0.02526 | F8: =E8*$G$24 -> 116980.6649 | I8: Existing road directions | J8: E-W | K8: B87
B9: Project scoping, planning, scheduling, monitoring, reporting and commissioning | I9: Previous Road area | J9: 0 | K9: m²
B10: Management of preconstruction activities, development of tender documents and management of contracts | I10: Total Roadway Area | J10: 6692 | K10: m²
B11: Managing external interfaces, including community liaison, environmental issues, traffic issues etc | I11: Island Area | J11: 0 | K11: m²
B12: Records management | I12: Kerb and Channel | J12: 999 | K12: Lm
B13: Program Administration | D13: 0.02 | E13: =($D$3/0.1)*D13 -> 0.01684 | F13: =E13*$G$24 -> 77987.10997 | I13: Shoulder | J13: 999 | K13: m²
I14: Footpath Length | J14: 0 | K14: Lm
A15: B | B15: =Summary!B11 -> Design and Investigation (%) | G15: =SUM(F15:F23) -> 389935.5498 | I15: Pipe Length | K15: Lm
B16: Traffic Investigations | D16: 0.0085 | E16: =($D$3/0.1)*D16 -> 0.007157 | F16: =E16*$G$24 -> 33144.52174 | I16: Island Concrete infill | J16: 0 | K16: m²
B17: Cadastral and Engineering Survey | D17: 0.012 | E17: 0.010104 | F17: 46792.26598 | I17: Shared Path Length | J17: 999 | K17: Lm
B18: Geotechnical investigations Pavement Investigations and Design | D18: 0.012 | E18: 0.010104 | F18: 46792.26598 | I18: Total Road Length | J18: 999 | K18: Lm
B19: Environmental Investigations | E19: 0 | F19: 0
B20: Landscape Design | E20: 0 | F20: 0
B21: Preliminary and Final Design | D21: 0.0425 | E21: 0.035785 | F21: 165722.6087
B22: Construction Management | D22: 0.025 | E22: 0.02105 | F22: 97483.88746
I23: 2.5% of construction cost | J23: =0.025*G24 -> 115776.5884
A24: C | B24: Construction | F24: =SUM(F25:F84) -> 4631063.537 | G24: =SUM(G25:G83) -> 4631063.537
A25: 1 | B25: PRELIMINARIES | G25: =SUM(F25:F28) -> 156000
A26: 1.1 | B26: Site establishment | C26: 1 | D26: Item | E26: 10000 | F26: =E26*C26 -> 10000
A27: 1.2 | B27: Site management & supervision including QA | C27: 20 | D27: wks | E27: 2500 | F27: =SUM(E27*C27) -> 50000
A28: 1.3 | B28: Provision for traffic | C28: 1 | D28: Item | E28: =C27*6*800 -> 96000 | F28: =SUM(E28*C28) -> 96000
A29: 2 | B29: DEMOLITION | G29: =SUM(F29:F32) -> 0
A30: 2.1 | B30: Trees | C30: 0 | D30: No | E30: 500 | F30: =SUM(E30*C30) -> 0
A31: 2.2 | B31: Strip asphalt from existing pavement | C31: =J9 -> 0 | D31: m² | E31: 5 | F31: =SUM(E31*C31) -> 0
A32: 3 | B32: EARTHWORKS | G32: =SUM(F32:F38) -> 353882.13
A33: 3.1 | B33: Stripping topsoil (100mm) | C33: =J10+J12*1+J13*1.3-J11-J9 -> 8989.7 | D33: m² | E33: 6 | F33: =SUM(E33*C33) -> 53938.2
A34: 3.2 | B34: Excavation and removal (inc. reclamation of FCR) | C34: =C40*0.18 -> 1258.506 | D34: m³ | E34: 30 | F34: =SUM(E34*C34) -> 37755.18
A35: 3.3 | B35: Filling | C35: =C40*0.71 -> 4964.107 | D35: m³ | E35: 15 | F35: =C35*E35 -> 74461.605
A36: 3.4 | B36: Import Fill material | C36: =C35-C34 -> 3705.601 | D36: m³ | E36: 45 | F36: =C36*E36 -> 166752.045
A37: 3.5 | B37: Soft spot rectification (reclaimed FCR) | C37: =C40*20% -> 1398.34 | D37: m³ | E37: 15 | F37: =SUM(E37*C37) -> 20975.1
A38: 4 | B38: PAVEMENT | G38: =SUM(F38:F42) -> 1511707
A39: 4.1 | B39: Deep lift asphalt 195 mm | C39: =J10-J13-J11 -> 5693 | D39: m² | E39: =IF(C39<15000,105,85) -> 105 | F39: =SUM(E39*C39) -> 597765
A40: 4.2 | B40: Subbase course - 250 mm 3% CTCR | C40: =C39+(J12*1)+C41*0.3 -> 6991.7 | D40: m² | E40: =IF(C40<15000,55,45) -> 55 | F40: =SUM(E40*C40) -> 384543.5
A41: 4.3 | B41: Shoulder - full depth pavement | C41: =J13 -> 999 | D41: m² | E41: 145 | F41: =SUM(E41*C41) -> 144855
A42: 4.4 | B42: Rock excavation & sub-surface remediation 450mm | C42: =C40 -> 6991.7 | D42: m² | E42: 55 | F42: =SUM(E42*C42) -> 384543.5
A43: 5 | B43: DRAINAGE | G43: =SUM(F43:F48) -> 306892.8
A44: 5.1 | B44: Subsoil drains 100mm dia - screenings | C44: =J12+J13 -> 1998 | D44: Lm | E44: 30 | F44: =SUM(E44*C44) -> 59940
A45: 5.2 | B45: Subsoil drains 100mm dia - no fines conc | C45: 0 | D45: Lm | E45: 45 | F45: =SUM(E45*C45) -> 0
A46: 5.3 | B46: 375 RCP (class 2) | C46: =J18+(C47*8) -> 1158.84 | D46: Lm | E46: 170 | F46: =SUM(E46*C46) -> 197002.8
A47: 5.4 | B47: Side entry pits | C47: =J12/50 -> 19.98 | D47: No | E47: 2500 | F47: =SUM(E47*C47) -> 49950
A48: 5.5 | B48: Allowance to modify draiange to ultimate location | D48: item | E48: =14*(2500+2000+10*E46) -> 86800 | F48: =SUM(E48*C48) -> 0
A49: 6 | B49: CONCRETE WORKS | G49: =SUM(F49:F54) -> 179820
A50: 6.1 | B50: Kerb &channel | C50: =J12 -> 999 | D50: Lm | E50: 50 | F50: =SUM(E50*C50) -> 49950
A51: 6.2 | B51: Shared Paths (3.0m wide,125 mm, residential, as per MPA) | C51: =J17 -> 999 | D51: Lm | E51: 130 | F51: =SUM(E51*C51) -> 129870
A52: 6.3 | B52: Footpaths (1.5m wide,125 mm, residential, as per MPA) | C52: =J14 -> 0 | D52: No | E52: 65 | F52: =SUM(E52*C52) -> 0
A53: 6.4 | B53: Laybacks and tactile pavers | C53: 0 | D53: m² | E53: 1200 | F53: =SUM(E53*C53) -> 0
A54: 6.5 | B54: 10m concrete maintenance area end of all islands | C54: =J16 -> 0 | D54: m² | E54: 85 | F54: =SUM(E54*C54) -> 0
A55: 7 | B55: TRAFFIC SIGNAL WORKS | D55: NA | G55: =SUM(F55:F55) -> 0
A56: 8 | B56: SIGNAL MAINTENANCE (10 YEARS) by Road Authority | D56: NA | F56: =SUM(E56*C56) -> 0 | G56: =F56 -> 0
A57: 9 | B57: POWER & LIGHTING | G57: =SUM(F58:F64) -> 228367.8571
A58: 9.1 | B58: Light pole (1-way) and luminous lights | C58: 0 | D58: No | E58: 8000 | F58: 0
A59: 9.2 | B59: Light pole (2-way) and luminous lights | C59: =J18/70 -> 14.27142857 | D59: No | E59: 9000 | F59: 128442.8571
A60: 9.3 | B60: JUP lighting single | C60: 0 | D60: No | E60: 4000 | F60: 0
A61: 9.4 | B61: JUP lighting dual | C61: 0 | D61: No | E61: 5000 | F61: 0
A62: 9.5 | B62: Cabling, conduits and pits | C62: =J18 -> 999 | D62: Lm | E62: 75 | F62: 74925
A63: 9.6 | B63: Electrical connection | C63: 1 | D63: Item | E63: 15000 | F63: 15000
A64: 9.7 | B64: Removal & replacement of pole-mounted substation | C64: 2 | D64: Item | E64: 5000 | F64: 10000
A65: 10 | B65: LANDSCAPING WORKS | G65: =SUM(F65:F66) -> 106143.75
A66: 10.1 | B66: Topsoiling seeding | C66: =SUM(J13,J17)*6+J12*0.5+J11-J16 -> 12487.5 | D66: m² | E66: 8.5 | F66: =SUM(E66*C66) -> 106143.75
A67: 11 | B67: SIGNING | C67: 1 | D67: item | E67: 10000 | F67: 10000 | G67: =F67 -> 10000
A68: 12 | B68: LINEMARKING (Thermoplastic) | C68: 1 | D68: item | E68: 30000 | F68: 30000 | G68: =F68 -> 30000
A69: 13 | B69: SERVICE RELOCATION | G69: =SUM(F69:F76) -> 1748250
A70: 13.1 | B70: Water supply main, 300 mm | C70: =$J$18 -> 999 | D70: Lm | E70: 350 | F70: =SUM(E70*C70) -> 349650
A71: 13.2 | B71: Gas supply main 150 mm | C71: =$J$18 -> 999 | D71: Lm | E71: 180 | F71: =SUM(E71*C71) -> 179820
A72: 13.3 | B72: Telco Pit and Pipe (Assume 3x100mm) | C72: 999 | D72: Lm | E72: 120 | F72: =SUM(E72*C72) -> 119880
A73: 13.4 | B73: Sewer main 300 mm (Assume Gravity + FCR Backfill) | C73: 999 | D73: Lm | E73: 450 | F73: 449550
A74: 13.5 | B74: UG electrical (HV + LV) | C74: 999 | D74: Lm | E74: 300 | F74: =SUM(E74*C74) -> 299700
A75: 13.6 | B75: Water supply main (RECYCLED), 300 mm | C75: 999 | D75: Lm | E75: 350 | F75: =SUM(E75*C75) -> 349650
A76: 13.7 | B76: (Overhead electrical) No allowance | C76: 0 | D76: Lm | F76: =SUM(E76*C76) -> 0
A77: 14 | B77: MISCELLANEOUS | G77: =SUM(F77:F82) -> 0
B78: Exisiting Road outside of new road pavements
A79: 14.1 | B79: Strip asphalt | C79: =J9 -> 0 | D79: m² | E79: 5 | F79: =SUM(E79*C79) -> 0
A80: 14.2 | B80: Recycle FCR to stockpile | C80: =C79*0.3 -> 0 | D80: m³ | E80: 10 | F80: =SUM(E80*C80) -> 0
A81: 14.3 | B81: backfill with structural fill | C81: =C79*0.5 -> 0 | D81: m³ | E81: 12 | F81: =SUM(E81*C81) -> 0
A82: 14.4 | B82: Topsoiling | C82: =C79 -> 0 | D82: m² | E82: 8.5 | F82: =SUM(E82*C82) -> 0
A83: 15 | B83: PROVISIONAL SUM - DAYWORK | D83: item | F83: 0 | G83: =F83 -> 0
B85: TOTAL A - C | F85: =SUM(F25:F84,F7:F23) -> 5215966.862 | G85: =SUM(G24+G15+G7) -> 5215966.862
A87: D | B87: Contingency
B88: =Summary!B17 -> Contingency (15% of C) | F88: 0.15 | G88: =F88*G24 -> 694659.5306
A90: E | B90: PROJECT BUDGET
B91: Total Estimate | G91: =G88+G85 -> 5910626.392
B92: Total Estimate per linear metre | G92: =G91/J18 -> 5916.542935
A94: Notes:
A95: - | B95: Koukoura Road earthworks based on a concept vertical grade alignment
A97: Services
A98: 1 | B98: Basic supply infrastructure has been included for Gas, Telco, Sewer, Water, U/G HV & LV elect have been incorporated for the road sections
A99: 2 | B99: No allowance for water, gas, telstra, sewer
A100: Substations
A101: 3 | B101: No allowance for substations
A102: Preliminaries
A103: 4 | B103: Based on nominal rates
A104: Subsoil Drain
A105: 5 | B105: Assume same as kerb and channel
A106: Side Entry Pits
A107: 6 | B107: Based on 50 m intervals
A108: Tactile Pavers
A109: 7 | B109: Assume hazard TGSI's (no directional)
A110: Signing
A111: 8 | B111: Nominal rate
A112: Pavement
A113: 9 | B113: Assume deep lift asphalt pavement
A114: Tree Removal
A115: 10 | B115: Based on preliminary information
A116: Roads
A117: 11 | B117: Where applicable, existing asphalt roads to be demolished as part of intersection works
A122: AUTHOR: | B122: Graeme Stenton
A123: Date: | B123: 2014-12-16
A125: REVIEWER: | B125: Rob Henry
A126: Date:

Sheet RD-06-T10
A1: PRELIMINARY ESTIMATE OF DEVELOPMENT COSTS | G1: =Summary!A5 -> 2015-05-14
A2: =Summary!A3 -> CG140690 | G2: =Summary!A6 -> Version 4
A3: =Summary!A4 -> Wollert PSP - Roads Cost Estimate | C3: PM %: | D3: 0.0845 | I3: Click here for Nearmap Screenshots taken July 2014
A4: Intersection Ref: | B4: =J7 -> RD-06 | E4: DRAFT | I4: Do not Delete the below info
A5: Sheet Ref: | B5: =Summary!G9 -> T10-07 & 08-P2
A6: ITEM | B6: DESCRIPTION | C6: QUANTITY | D6: UNIT | E6: RATE | F6: AMOUNT | G6: SUBTOTAL | I6: Sheet Specific Information | J6: Input | K6: Cell Reference
A7: A | B7: =Summary!B10 -> Project and Program Management (%) | G7: =SUM(F7:F14) -> 190121.5427 | I7: Intersection Name | J7: RD-06 | K7: A4
B8: Project Management | D8: 0.03 | E8: =($D$3/0.1)*D8 -> 0.02535 | F8: =E8*$G$24 -> 114072.9256 | I8: Existing road directions | J8: N-S E-W | K8: B87
B9: Project scoping, planning, scheduling, monitoring, reporting and commissioning | I9: Previous Road area | J9: 5160 | K9: m²
B10: Management of preconstruction activities, development of tender documents and management of contracts | I10: Total Roadway Area | J10: 6212 | K10: m²
B11: Managing external interfaces, including community liaison, environmental issues, traffic issues etc | I11: Island Area | J11: 0 | K11: m²
B12: Records management | I12: Kerb and Channel | J12: 1808 | K12: Lm
B13: Program Administration | D13: 0.02 | E13: =($D$3/0.1)*D13 -> 0.0169 | F13: =E13*$G$24 -> 76048.6171 | I13: Shoulder | J13: 0 | K13: m²
I14: Footpath Length | J14: 0 | K14: Lm
A15: B | B15: =Summary!B11 -> Design and Investigation (%) | G15: =SUM(F15:F23) -> 380243.0855 | I15: Pipe Length | K15: Lm
B16: Traffic Investigations | D16: 0.0085 | E16: =($D$3/0.1)*D16 -> 0.0071825 | F16: =E16*$G$24 -> 32320.66227 | I16: Island Concrete infill | J16: 0 | K16: m²
B17: Cadastral and Engineering Survey | D17: 0.012 | E17: 0.01014 | F17: 45629.17026 | I17: Shared Path Length | J17: 0 | K17: Lm
B18: Geotechnical investigations Pavement Investigations and Design | D18: 0.012 | E18: 0.01014 | F18: 45629.17026 | I18: Total Road Length | J18: 918 | K18: Lm
B19: Environmental Investigations | E19: 0 | F19: 0
B20: Landscape Design | E20: 0 | F20: 0
B21: Preliminary and Final Design | D21: 0.0425 | E21: 0.0359125 | F21: 161603.3113
B22: Construction Management | D22: 0.025 | E22: 0.021125 | F22: 95060.77137
I23: 2.5% of construction cost | J23: =0.025*G24 -> 112497.9543
A24: C | B24: Construction | F24: =SUM(F25:F84) -> 4499918.171 | G24: =SUM(G25:G83) -> 4499918.171
A25: 1 | B25: PRELIMINARIES | G25: =SUM(F25:F28) -> 156000
A26: 1.1 | B26: Site establishment | C26: 1 | D26: Item | E26: 10000 | F26: =E26*C26 -> 10000
A27: 1.2 | B27: Site management & supervision including QA | C27: 20 | D27: wks | E27: 2500 | F27: =SUM(E27*C27) -> 50000
A28: 1.3 | B28: Provision for traffic | C28: 1 | D28: Item | E28: =C27*6*800 -> 96000 | F28: =SUM(E28*C28) -> 96000
A29: 2 | B29: DEMOLITION | G29: =SUM(F29:F32) -> 25800
A30: 2.1 | B30: Trees | C30: 0 | D30: No | E30: 500 | F30: =SUM(E30*C30) -> 0
A31: 2.2 | B31: Strip asphalt from existing pavement | C31: =J9 -> 5160 | D31: m² | E31: 5 | F31: =SUM(E31*C31) -> 25800
A32: 3 | B32: EARTHWORKS | G32: =SUM(F32:F38) -> 361218
A33: 3.1 | B33: Stripping topsoil (100mm) | C33: =J10+J12*1+J13*1.3-J11-J9 -> 2860 | D33: m² | E33: 6 | F33: =SUM(E33*C33) -> 17160
A34: 3.2 | B34: Excavation and removal (inc. reclamation of FCR) | C34: =C40*0.18 -> 1443.6 | D34: m³ | E34: 30 | F34: =SUM(E34*C34) -> 43308
A35: 3.3 | B35: Filling | C35: =C40*0.71 -> 5694.2 | D35: m³ | E35: 15 | F35: =C35*E35 -> 85413
A36: 3.4 | B36: Import Fill material | C36: =C35-C34 -> 4250.6 | D36: m³ | E36: 45 | F36: =C36*E36 -> 191277
A37: 3.5 | B37: Soft spot rectification (reclaimed FCR) | C37: =C40*20% -> 1604 | D37: m³ | E37: 15 | F37: =SUM(E37*C37) -> 24060
A38: 4 | B38: PAVEMENT | G38: =SUM(F38:F42) -> 1534460
A39: 4.1 | B39: Deep lift asphalt 195 mm | C39: =J10-J13-J11 -> 6212 | D39: m² | E39: =IF(C39<15000,105,85) -> 105 | F39: =SUM(E39*C39) -> 652260
A40: 4.2 | B40: Subbase course - 250 mm 3% CTCR | C40: =C39+(J12*1)+C41*0.3 -> 8020 | D40: m² | E40: =IF(C40<15000,55,45) -> 55 | F40: =SUM(E40*C40) -> 441100
A41: 4.3 | B41: Shoulder - full depth pavement | C41: =J13 -> 0 | D41: m² | E41: 145 | F41: =SUM(E41*C41) -> 0
A42: 4.4 | B42: Rock excavation & sub-surface remediation 450mm | C42: =C40 -> 8020 | D42: m² | E42: 55 | F42: =SUM(E42*C42) -> 441100
A43: 5 | B43: DRAINAGE | G43: =SUM(F43:F48) -> 349877.6
A44: 5.1 | B44: Subsoil drains 100mm dia - screenings | C44: =J12+J13 -> 1808 | D44: Lm | E44: 30 | F44: =SUM(E44*C44) -> 54240
A45: 5.2 | B45: Subsoil drains 100mm dia - no fines conc | C45: 0 | D45: Lm | E45: 45 | F45: =SUM(E45*C45) -> 0
A46: 5.3 | B46: 375 RCP (class 2) | C46: =J18+(C47*8) -> 1207.28 | D46: Lm | E46: 170 | F46: =SUM(E46*C46) -> 205237.6
A47: 5.4 | B47: Side entry pits | C47: =J12/50 -> 36.16 | D47: No | E47: 2500 | F47: =SUM(E47*C47) -> 90400
A48: 5.5 | B48: Allowance to modify draiange to ultimate location | D48: item | E48: =14*(2500+2000+10*E46) -> 86800 | F48: =SUM(E48*C48) -> 0
A49: 6 | B49: CONCRETE WORKS | G49: =SUM(F49:F54) -> 90400
A50: 6.1 | B50: Kerb &channel | C50: =J12 -> 1808 | D50: Lm | E50: 50 | F50: =SUM(E50*C50) -> 90400
A51: 6.2 | B51: Shared Paths (3.0m wide,125 mm, residential, as per MPA) | C51: =J17 -> 0 | D51: Lm | E51: 130 | F51: =SUM(E51*C51) -> 0
A52: 6.3 | B52: Footpaths (1.5m wide,125 mm, residential, as per MPA) | C52: =J14 -> 0 | D52: No | E52: 65 | F52: =SUM(E52*C52) -> 0
A53: 6.4 | B53: Laybacks and tactile pavers | C53: 0 | D53: m² | E53: 1200 | F53: =SUM(E53*C53) -> 0
A54: 6.5 | B54: 10m concrete maintenance area end of all islands | C54: =J16 -> 0 | D54: m² | E54: 85 | F54: =SUM(E54*C54) -> 0
A55: 7 | B55: TRAFFIC SIGNAL WORKS | D55: NA | G55: =SUM(F55:F55) -> 0
A56: 8 | B56: SIGNAL MAINTENANCE (10 YEARS) by Road Authority | D56: NA | F56: =SUM(E56*C56) -> 0 | G56: =F56 -> 0
A57: 9 | B57: POWER & LIGHTING | G57: =SUM(F58:F64) -> 211878.5714
A58: 9.1 | B58: Light pole (1-way) and luminous lights | C58: 0 | D58: No | E58: 8000 | F58: 0
A59: 9.2 | B59: Light pole (2-way) and luminous lights | C59: =J18/70 -> 13.11428571 | D59: No | E59: 9000 | F59: 118028.5714
A60: 9.3 | B60: JUP lighting single | C60: 0 | D60: No | E60: 4000 | F60: 0
A61: 9.4 | B61: JUP lighting dual | C61: 0 | D61: No | E61: 5000 | F61: 0
A62: 9.5 | B62: Cabling, conduits and pits | C62: =J18 -> 918 | D62: Lm | E62: 75 | F62: 68850
A63: 9.6 | B63: Electrical connection | C63: 1 | D63: Item | E63: 15000 | F63: 15000
A64: 9.7 | B64: Removal & replacement of pole-mounted substation | C64: 2 | D64: Item | E64: 5000 | F64: 10000
A65: 10 | B65: LANDSCAPING WORKS | G65: =SUM(F65:F66) -> 7684
A66: 10.1 | B66: Topsoiling seeding | C66: =SUM(J13,J17)*6+J12*0.5+J11-J16 -> 904 | D66: m² | E66: 8.5 | F66: =SUM(E66*C66) -> 7684
A67: 11 | B67: SIGNING | C67: 1 | D67: item | E67: 10000 | F67: 10000 | G67: =F67 -> 10000
A68: 12 | B68: LINEMARKING (Thermoplastic) | C68: 1 | D68: item | E68: 30000 | F68: 30000 | G68: =F68 -> 30000
A69: 13 | B69: SERVICE RELOCATION | G69: =SUM(F69:F76) -> 1606500
A70: 13.1 | B70: Water supply main, 300 mm | C70: =$J$18 -> 918 | D70: Lm | E70: 350 | F70: =SUM(E70*C70) -> 321300
A71: 13.2 | B71: Gas supply main 150 mm | C71: =$J$18 -> 918 | D71: Lm | E71: 180 | F71: =SUM(E71*C71) -> 165240
A72: 13.3 | B72: Telco Pit and Pipe (Assume 3x100mm) | C72: 918 | D72: Lm | E72: 120 | F72: =SUM(E72*C72) -> 110160
A73: 13.4 | B73: Sewer main 300 mm (Assume Gravity + FCR Backfill) | C73: 918 | D73: Lm | E73: 450 | F73: 413100
A74: 13.5 | B74: UG electrical (HV + LV) | C74: 918 | D74: Lm | E74: 300 | F74: =SUM(E74*C74) -> 275400
A75: 13.6 | B75: Water supply main (RECYCLED), 300 mm | C75: 918 | D75: Lm | E75: 350 | F75: =SUM(E75*C75) -> 321300
A76: 13.7 | B76: (Overhead electrical) No allowance | C76: 0 | D76: Lm | F76: =SUM(E76*C76) -> 0
A77: 14 | B77: MISCELLANEOUS | G77: =SUM(F77:F82) -> 116100
B78: Exisiting Road outside of new road pavements
A79: 14.1 | B79: Strip asphalt | C79: =J9 -> 5160 | D79: m² | E79: 5 | F79: =SUM(E79*C79) -> 25800
A80: 14.2 | B80: Recycle FCR to stockpile | C80: =C79*0.3 -> 1548 | D80: m³ | E80: 10 | F80: =SUM(E80*C80) -> 15480
A81: 14.3 | B81: backfill with structural fill | C81: =C79*0.5 -> 2580 | D81: m³ | E81: 12 | F81: =SUM(E81*C81) -> 30960
A82: 14.4 | B82: Topsoiling | C82: =C79 -> 5160 | D82: m² | E82: 8.5 | F82: =SUM(E82*C82) -> 43860
A83: 15 | B83: PROVISIONAL SUM - DAYWORK | D83: item | F83: 0 | G83: =F83 -> 0
B85: TOTAL A - C | F85: =SUM(F25:F84,F7:F23) -> 5070282.8 | G85: =SUM(G24+G15+G7) -> 5070282.8
A87: D | B87: Contingency
B88: =Summary!B17 -> Contingency (15% of C) | F88: 0.15 | G88: =F88*G24 -> 674987.7257
A90: E | B90: PROJECT BUDGET
B91: Total Estimate | G91: =G88+G85 -> 5745270.525
B92: Total Estimate per linear metre | G92: =G91/J18 -> 6258.464625
A94: Notes:
A95: - | B95: Koukoura Road earthworks based on a concept vertical grade alignment
A97: Services
A98: 1 | B98: Basic supply infrastructure has been included for Gas, Telco, Sewer, Water, U/G HV & LV elect have been incorporated for the road sections
A99: 2 | B99: No allowance for water, gas, telstra, sewer
A100: Substations
A101: 3 | B101: No allowance for substations
A102: Preliminaries
A103: 4 | B103: Based on nominal rates
A104: Subsoil Drain
A105: 5 | B105: Assume same as kerb and channel
A106: Side Entry Pits
A107: 6 | B107: Based on 50 m intervals
A108: Tactile Pavers
A109: 7 | B109: Assume hazard TGSI's (no directional)
A110: Signing
A111: 8 | B111: Nominal rate
A112: Pavement
A113: 9 | B113: Assume deep lift asphalt pavement
A114: Tree Removal
A115: 10 | B115: Based on preliminary information
A116: Roads
A117: 11 | B117: Where applicable, existing asphalt roads to be demolished as part of intersection works
A122: AUTHOR: | B122: Graeme Stenton
A123: Date: | B123: 2014-12-16
A125: REVIEWER: | B125: Rob Henry
A126: Date:

Sheet RD-07-T10
A1: PRELIMINARY ESTIMATE OF DEVELOPMENT COSTS | G1: =Summary!A5 -> 2015-05-14
A2: =Summary!A3 -> CG140690 | G2: =Summary!A6 -> Version 4
A3: =Summary!A4 -> Wollert PSP - Roads Cost Estimate | C3: PM %: | D3: 0.0827 | I3: Click here for Nearmap Screenshots taken July 2014
A4: Intersection Ref: | B4: =J7 -> RD-07 | E4: DRAFT | I4: Do not Delete the below info
A5: Sheet Ref: | B5: =Summary!H9 -> T10-09, 10 & 11-P2
A6: ITEM | B6: DESCRIPTION | C6: QUANTITY | D6: UNIT | E6: RATE | F6: AMOUNT | G6: SUBTOTAL | I6: Sheet Specific Information | J6: Input | K6: Cell Reference
A7: A | B7: =Summary!B10 -> Project and Program Management (%) | G7: =SUM(F7:F14) -> 221712.5384 | I7: Intersection Name | J7: RD-07 | K7: A4
B8: Project Management | D8: 0.03 | E8: =($D$3/0.1)*D8 -> 0.02481 | F8: =E8*$G$24 -> 133027.523 | I8: Existing road directions | J8: E-W | K8: B87
B9: Project scoping, planning, scheduling, monitoring, reporting and commissioning | I9: Previous Road area | J9: 3342 | K9: m²
B10: Management of preconstruction activities, development of tender documents and management of contracts | I10: Total Roadway Area | J10: 7352 | K10: m²
B11: Managing external interfaces, including community liaison, environmental issues, traffic issues etc | I11: Island Area | J11: 0 | K11: m²
B12: Records management | I12: Kerb and Channel | J12: 1098 | K12: Lm
B13: Program Administration | D13: 0.02 | E13: =($D$3/0.1)*D13 -> 0.01654 | F13: =E13*$G$24 -> 88685.01535 | I13: Shoulder | J13: 1098 | K13: m²
I14: Footpath Length | J14: 0 | K14: Lm
A15: B | B15: =Summary!B11 -> Design and Investigation (%) | G15: =SUM(F15:F23) -> 443425.0768 | I15: Pipe Length | K15: Lm
B16: Traffic Investigations | D16: 0.0085 | E16: =($D$3/0.1)*D16 -> 0.0070295 | F16: =E16*$G$24 -> 37691.13152 | I16: Island Concrete infill | J16: 0 | K16: m²
B17: Cadastral and Engineering Survey | D17: 0.012 | E17: 0.009924 | F17: 53211.00921 | I17: Shared Path Length | J17: 2196 | K17: Lm
B18: Geotechnical investigations Pavement Investigations and Design | D18: 0.012 | E18: 0.009924 | F18: 53211.00921 | I18: Total Road Length | J18: 1098 | K18: Lm
B19: Environmental Investigations | E19: 0 | F19: 0
B20: Landscape Design | E20: 0 | F20: 0
B21: Preliminary and Final Design | D21: 0.0425 | E21: 0.0351475 | F21: 188455.6576
B22: Construction Management | D22: 0.025 | E22: 0.020675 | F22: 110856.2692
I23: 2.5% of construction cost | J23: =0.025*G24 -> 134046.2747
A24: C | B24: Construction | F24: =SUM(F25:F84) -> 5361850.989 | G24: =SUM(G25:G83) -> 5361850.989
A25: 1 | B25: PRELIMINARIES | G25: =SUM(F25:F28) -> 156000
A26: 1.1 | B26: Site establishment | C26: 1 | D26: Item | E26: 10000 | F26: =E26*C26 -> 10000
A27: 1.2 | B27: Site management & supervision including QA | C27: 20 | D27: wks | E27: 2500 | F27: =SUM(E27*C27) -> 50000
A28: 1.3 | B28: Provision for traffic | C28: 1 | D28: Item | E28: =C27*6*800 -> 96000 | F28: =SUM(E28*C28) -> 96000
A29: 2 | B29: DEMOLITION | G29: =SUM(F29:F32) -> 30710
A30: 2.1 | B30: Trees | C30: 28 | D30: No | E30: 500 | F30: =SUM(E30*C30) -> 14000
A31: 2.2 | B31: Strip asphalt from existing pavement | C31: =J9 -> 3342 | D31: m² | E31: 5 | F31: =SUM(E31*C31) -> 16710
A32: 3 | B32: EARTHWORKS | G32: =SUM(F32:F38) -> 368744.46
A33: 3.1 | B33: Stripping topsoil (150mm) | C33: =J10+J12*1+J13*1.3-J11-J9 -> 6535.4 | D33: m² | E33: 6 | F33: =SUM(E33*C33) -> 39212.4
A34: 3.2 | B34: Excavation and removal (inc. reclamation of FCR) | C34: =C40*0.18 -> 1382.652 | D34: m³ | E34: 30 | F34: =SUM(E34*C34) -> 41479.56
A35: 3.3 | B35: Filling | C35: =C40*0.71 -> 5453.794 | D35: m³ | E35: 15 | F35: =C35*E35 -> 81806.91
A36: 3.4 | B36: Import Fill material | C36: =C35-C34 -> 4071.142 | D36: m³ | E36: 45 | F36: =C36*E36 -> 183201.39
A37: 3.5 | B37: Soft spot rectification (reclaimed FCR) | C37: =C40*0.2 -> 1536.28 | D37: m³ | E37: 15 | F37: =SUM(E37*C37) -> 23044.2
A38: 4 | B38: PAVEMENT | G38: =SUM(F38:F42) -> 1660834
A39: 4.1 | B39: Deep lift asphalt 195 mm | C39: =J10-J13-J11 -> 6254 | D39: m² | E39: =IF(C39<15000,105,85) -> 105 | F39: =SUM(E39*C39) -> 656670
A40: 4.2 | B40: Subbase course - 250 mm 3% CTCR | C40: =C39+(J12*1)+C41*0.3 -> 7681.4 | D40: m² | E40: =IF(C40<15000,55,45) -> 55 | F40: =SUM(E40*C40) -> 422477
A41: 4.3 | B41: Shoulder - full depth pavement | C41: =J13 -> 1098 | D41: m² | E41: 145 | F41: =SUM(E41*C41) -> 159210
A42: 4.4 | B42: Rock excavation & sub-surface remediation 450mm | C42: =C40 -> 7681.4 | D42: m² | E42: 55 | F42: =SUM(E42*C42) -> 422477
A43: 5 | B43: DRAINAGE | G43: =SUM(F43:F48) -> 337305.6
A44: 5.1 | B44: Subsoil drains 100mm dia - screenings | C44: =J12+J13 -> 2196 | D44: Lm | E44: 30 | F44: =SUM(E44*C44) -> 65880
A45: 5.2 | B45: Subsoil drains 100mm dia - no fines conc | C45: 0 | D45: Lm | E45: 45 | F45: =SUM(E45*C45) -> 0
A46: 5.3 | B46: 375 RCP (class 2) | C46: =J18+(C47*8) -> 1273.68 | D46: Lm | E46: 170 | F46: =SUM(E46*C46) -> 216525.6
A47: 5.4 | B47: Side entry pits | C47: =J12/50 -> 21.96 | D47: No | E47: 2500 | F47: =SUM(E47*C47) -> 54900
A48: 5.5 | B48: Allowance to modify draiange to ultimate location | C48: 0 | D48: item | E48: =14*(2500+2000+10*E46) -> 86800 | F48: =SUM(E48*C48) -> 0
A49: 6 | B49: CONCRETE WORKS | G49: =SUM(F49:F54) -> 340380
A50: 6.1 | B50: Kerb &channel | C50: =J12 -> 1098 | D50: Lm | E50: 50 | F50: =SUM(E50*C50) -> 54900
A51: 6.2 | B51: Shared Paths (3.0m wide,125 mm, residential, as per MPA) | C51: =J17 -> 2196 | D51: Lm | E51: 130 | F51: =SUM(E51*C51) -> 285480
A52: 6.3 | B52: Footpaths (1.5m wide,125 mm, residential, as per MPA) | C52: =J14 -> 0 | D52: No | E52: 65 | F52: =SUM(E52*C52) -> 0
A53: 6.4 | B53: Laybacks and tactile pavers | C53: 0 | D53: m² | E53: 1200 | F53: =SUM(E53*C53) -> 0
A54: 6.5 | B54: 10m concrete maintenance area end of all islands | C54: =J16 -> 0 | D54: m² | E54: 85 | F54: =SUM(E54*C54) -> 0
A55: 7 | B55: TRAFFIC SIGNAL WORKS | D55: NA | G55: =SUM(F55:F55) -> 0
A56: 8 | B56: SIGNAL MAINTENANCE (10 YEARS) by Road Authority | D56: NA | F56: =SUM(E56*C56) -> 0 | G56: =F56 -> 0
A57: 9 | B57: POWER & LIGHTING | G57: =SUM(F58:F64) -> 258521.4286
A58: 9.1 | B58: Light pole (1-way) and luminous lights | C58: 0 | D58: No | E58: 8000 | F58: 0
A59: 9.2 | B59: Light pole (2-way) and luminous lights | C59: =J18/70 -> 15.68571429 | D59: No | E59: 9000 | F59: 141171.4286
A60: 9.3 | B60: JUP lighting single | C60: 0 | D60: No | E60: 4000 | F60: 0
A61: 9.4 | B61: JUP lighting dual | C61: 0 | D61: No | E61: 5000 | F61: 0
A62: 9.5 | B62: Cabling, conduits and pits | C62: =J18 -> 1098 | D62: Lm | E62: 75 | F62: 82350
A63: 9.6 | B63: Electrical connection | C63: 1 | D63: Item | E63: 15000 | F63: 15000
A64: 9.7 | B64: Removal & replacement of pole-mounted substation | C64: 4 | D64: Item | E64: 5000 | F64: 20000
A65: 10 | B65: LANDSCAPING WORKS | G65: =SUM(F65:F66) -> 172660.5
A66: 10.1 | B66: Topsoiling seeding | C66: =SUM(J13,J17)*6+J12*0.5+J11-J16 -> 20313 | D66: m² | E66: 8.5 | F66: =SUM(E66*C66) -> 172660.5
A67: 11 | B67: SIGNING | C67: 1 | D67: item | E67: 10000 | F67: 10000 | G67: =F67 -> 10000
A68: 12 | B68: LINEMARKING (Thermoplastic) | C68: 1 | D68: item | E68: 30000 | F68: 30000 | G68: =F68 -> 30000
A69: 13 | B69: SERVICE RELOCATION | G69: =SUM(F69:F76) -> 1921500
A70: 13.1 | B70: Water supply main, 300 mm | C70: =$J$18 -> 1098 | D70: Lm | E70: 350 | F70: =SUM(E70*C70) -> 384300
A71: 13.2 | B71: Gas supply main 150 mm | C71: =$J$18 -> 1098 | D71: Lm | E71: 180 | F71: =SUM(E71*C71) -> 197640
A72: 13.3 | B72: Telco Pit and Pipe (Assume 3x100mm) | C72: 1098 | D72: Lm | E72: 120 | F72: =SUM(E72*C72) -> 131760
A73: 13.4 | B73: Sewer main 300 mm (Assume Gravity + FCR Backfill) | C73: 1098 | D73: Lm | E73: 450 | F73: 494100
A74: 13.5 | B74: UG electrical (HV + LV) | C74: 1098 | D74: Lm | E74: 300 | F74: =SUM(E74*C74) -> 329400
A75: 13.6 | B75: Water supply main (RECYCLED), 300 mm | C75: 1098 | D75: Lm | E75: 350 | F75: =SUM(E75*C75) -> 384300
A76: 13.7 | B76: (Overhead electrical) No allowance | C76: 0 | D76: Lm | F76: =SUM(E76*C76) -> 0
A77: 14 | B77: MISCELLANEOUS | G77: =SUM(F77:F82) -> 75195
B78: Exisiting Road outside of new road pavements
A79: 14.1 | B79: Strip asphalt | C79: =J9 -> 3342 | D79: m² | E79: 5 | F79: =SUM(E79*C79) -> 16710
A80: 14.2 | B80: Recycle FCR to stockpile | C80: =C79*0.3 -> 1002.6 | D80: m³ | E80: 10 | F80: =SUM(E80*C80) -> 10026
A81: 14.3 | B81: backfill with structural fill | C81: =C79*0.5 -> 1671 | D81: m³ | E81: 12 | F81: =SUM(E81*C81) -> 20052
A82: 14.4 | B82: Topsoiling | C82: =C79 -> 3342 | D82: m² | E82: 8.5 | F82: =SUM(E82*C82) -> 28407
A83: 15 | B83: PROVISIONAL SUM - DAYWORK | D83: item | F83: 0 | G83: =F83 -> 0
B85: TOTAL A - C | F85: =SUM(F25:F84,F7:F23) -> 6026988.604 | G85: =SUM(G24+G15+G7) -> 6026988.604
A87: D | B87: Contingency
B88: =Summary!B17 -> Contingency (15% of C) | F88: 0.15 | G88: =F88*G24 -> 804277.6483
A90: E | B90: PROJECT BUDGET
B91: Total Estimate | G91: =G88+G85 -> 6831266.252
B92: Total Estimate per linear metre | G92: =G91/J18 -> 6221.553964
A94: Notes:
A95: - | B95: Koukoura Road earthworks based on a concept vertical grade alignment
A97: Services
A98: 1 | B98: Basic supply infrastructure has been included for Gas, Telco, Sewer, Water, U/G HV & LV elect have been incorporated for the road sections
A99: 2 | B99: No allowance for water, gas, telstra, sewer
A100: Substations
A101: 3 | B101: No allowance for substations
A102: Preliminaries
A103: 4 | B103: Based on nominal rates
A104: Subsoil Drain
A105: 5 | B105: Assume same as kerb and channel
A106: Side Entry Pits
A107: 6 | B107: Based on 50 m intervals
A108: Tactile Pavers
A109: 7 | B109: Assume hazard TGSI's (no directional)
A110: Signing
A111: 8 | B111: Nominal rate
A112: Pavement
A113: 9 | B113: Assume deep lift asphalt pavement
A114: Tree Removal
A115: 10 | B115: Based on preliminary information
A116: Roads
A117: 11 | B117: Where applicable, existing asphalt roads to be demolished as part of intersection works
A122: AUTHOR: | B122: Graeme Stenton
A123: Date: | B123: 2014-12-16
A125: REVIEWER: | B125: Rob Henry
A126: Date:

Sheet RD-07dual -T11
A1: PRELIMINARY ESTIMATE OF DEVELOPMENT COSTS | G1: =Summary!A5 -> 2015-05-14
A2: =Summary!A3 -> CG140690 | G2: =Summary!A6 -> Version 4
A3: =Summary!A4 -> Wollert PSP - Roads Cost Estimate | C3: PM %: | D3: 0.0807 | I3: Click here for Nearmap Screenshots taken July 2014
A4: Intersection Ref: | B4: =J7 -> RD-07-DUAL | E4: DRAFT | I4: Do not Delete the below info
A5: Sheet Ref: | B5: =Summary!J9 -> T11-P1
A6: ITEM | B6: DESCRIPTION | C6: QUANTITY | D6: UNIT | E6: RATE | F6: AMOUNT | G6: SUBTOTAL | I6: Sheet Specific Information | J6: Input | K6: Cell Reference
A7: A | B7: =Summary!B10 -> Project and Program Management (%) | G7: =SUM(F7:F14) -> 263045.3755 | I7: Intersection Name | J7: RD-07-DUAL | K7: A4
B8: Project Management | D8: 0.03 | E8: =($D$3/0.1)*D8 -> 0.02421 | F8: =E8*$G$24 -> 157827.2253 | I8: Existing road directions | J8: E-W | K8: B87
B9: Project scoping, planning, scheduling, monitoring, reporting and commissioning | I9: Previous Road area | J9: 3342 | K9: m²
B10: Management of preconstruction activities, development of tender documents and management of contracts | I10: Total Roadway Area | J10: 10315 | K10: m²
B11: Managing external interfaces, including community liaison, environmental issues, traffic issues etc | I11: Island Area | J11: 0 | K11: m²
B12: Records management | I12: Kerb and Channel | J12: 2195 | K12: Lm
B13: Program Administration | D13: 0.02 | E13: =($D$3/0.1)*D13 -> 0.01614 | F13: =E13*$G$24 -> 105218.1502 | I13: Shoulder | J13: 2195 | K13: m²
I14: Footpath Length | J14: 0 | K14: Lm
A15: B | B15: =Summary!B11 -> Design and Investigation (%) | G15: =SUM(F15:F23) -> 526090.7509 | I15: Pipe Length | K15: Lm
B16: Traffic Investigations | D16: 0.0085 | E16: =($D$3/0.1)*D16 -> 0.0068595 | F16: =E16*$G$24 -> 44717.71383 | I16: Island Concrete infill | J16: 0 | K16: m²
B17: Cadastral and Engineering Survey | D17: 0.012 | E17: 0.009684 | F17: 63130.89011 | I17: Shared Path Length | J17: 2196 | K17: Lm
B18: Geotechnical investigations Pavement Investigations and Design | D18: 0.012 | E18: 0.009684 | F18: 63130.89011 | I18: Total Road Length | J18: 1098 | K18: Lm
B19: Environmental Investigations | E19: 0 | F19: 0
B20: Landscape Design | E20: 0 | F20: 0
B21: Preliminary and Final Design | D21: 0.0425 | E21: 0.0342975 | F21: 223588.5691
B22: Construction Management | D22: 0.025 | E22: 0.020175 | F22: 131522.6877
I23: 2.5% of construction cost | J23: =0.025*G24 -> 162977.3082
A24: C | B24: Construction | F24: =SUM(F25:F84) -> 6519092.329 | G24: =SUM(G25:G83) -> 6519092.329
A25: 1 | B25: PRELIMINARIES | G25: =SUM(F25:F28) -> 156000
A26: 1.1 | B26: Site establishment | C26: 1 | D26: Item | E26: 10000 | F26: =E26*C26 -> 10000
A27: 1.2 | B27: Site management & supervision including QA | C27: 20 | D27: wks | E27: 2500 | F27: =SUM(E27*C27) -> 50000
A28: 1.3 | B28: Provision for traffic | C28: 1 | D28: Item | E28: =C27*6*800 -> 96000 | F28: =SUM(E28*C28) -> 96000
A29: 2 | B29: DEMOLITION | G29: =SUM(F29:F32) -> 30710
A30: 2.1 | B30: Trees | C30: 28 | D30: No | E30: 500 | F30: =SUM(E30*C30) -> 14000
A31: 2.2 | B31: Strip asphalt from existing pavement | C31: =J9 -> 3342 | D31: m² | E31: 5 | F31: =SUM(E31*C31) -> 16710
A32: 3 | B32: EARTHWORKS | G32: =SUM(F32:F38) -> 542892.15
A33: 3.1 | B33: Stripping topsoil (150mm) | C33: =J10+J12*1+J13*1.3-J11-J9 -> 12021.5 | D33: m² | E33: 6 | F33: =SUM(E33*C33) -> 72129
A34: 3.2 | B34: Excavation and removal (inc. reclamation of FCR) | C34: =C40*0.18 -> 1975.23 | D34: m³ | E34: 30 | F34: =SUM(E34*C34) -> 59256.9
A35: 3.3 | B35: Filling | C35: =C40*0.71 -> 7791.185 | D35: m³ | E35: 15 | F35: =C35*E35 -> 116867.775
A36: 3.4 | B36: Import Fill material | C36: =C35-C34 -> 5815.955 | D36: m³ | E36: 45 | F36: =C36*E36 -> 261717.975
A37: 3.5 | B37: Soft spot rectification (reclaimed FCR) | C37: =C40*0.2 -> 2194.7 | D37: m³ | E37: 15 | F37: =SUM(E37*C37) -> 32920.5
A38: 4 | B38: PAVEMENT | G38: =SUM(F38:F42) -> 2377960
A39: 4.1 | B39: Deep lift asphalt 195 mm | C39: =J10-J13-J11 -> 8120 | D39: m² | E39: =IF(C39<15000,105,85) -> 105 | F39: =SUM(E39*C39) -> 852600
A40: 4.2 | B40: Subbase course - 250 mm 3% CTCR | C40: =C39+(J12*1)+C41*0.3 -> 10973.5 | D40: m² | E40: =IF(C40<15000,55,45) -> 55 | F40: =SUM(E40*C40) -> 603542.5
A41: 4.3 | B41: Shoulder - full depth pavement | C41: =J13 -> 2195 | D41: m² | E41: 145 | F41: =SUM(E41*C41) -> 318275
A42: 4.4 | B42: Rock excavation & sub-surface remediation 450mm | C42: =C40 -> 10973.5 | D42: m² | E42: 55 | F42: =SUM(E42*C42) -> 603542.5
A43: 5 | B43: DRAINAGE | G43: =SUM(F43:F48) -> 487814
A44: 5.1 | B44: Subsoil drains 100mm dia - screenings | C44: =J12+J13 -> 4390 | D44: Lm | E44: 30 | F44: =SUM(E44*C44) -> 131700
A45: 5.2 | B45: Subsoil drains 100mm dia - no fines conc | C45: 0 | D45: Lm | E45: 45 | F45: =SUM(E45*C45) -> 0
A46: 5.3 | B46: 375 RCP (class 2) | C46: =J18+(C47*8) -> 1449.2 | D46: Lm | E46: 170 | F46: =SUM(E46*C46) -> 246364
A47: 5.4 | B47: Side entry pits | C47: =J12/50 -> 43.9 | D47: No | E47: 2500 | F47: =SUM(E47*C47) -> 109750
A48: 5.5 | B48: Allowance to modify drainage to ultimate location | C48: 0 | D48: item | E48: =14*(2500+2000+10*E46) -> 86800 | F48: =SUM(E48*C48) -> 0
A49: 6 | B49: CONCRETE WORKS | G49: =SUM(F49:F54) -> 395230
A50: 6.1 | B50: Kerb &channel | C50: =J12 -> 2195 | D50: Lm | E50: 50 | F50: =SUM(E50*C50) -> 109750
A51: 6.2 | B51: Shared Paths (3.0m wide,125 mm, residential, as per MPA) | C51: =J17 -> 2196 | D51: Lm | E51: 130 | F51: =SUM(E51*C51) -> 285480
A52: 6.3 | B52: Footpaths (1.5m wide,125 mm, residential, as per MPA) | C52: =J14 -> 0 | D52: No | E52: 65 | F52: =SUM(E52*C52) -> 0
A53: 6.4 | B53: Laybacks and tactile pavers | C53: 0 | D53: m² | E53: 1200 | F53: =SUM(E53*C53) -> 0
A54: 6.5 | B54: 10m concrete maintenance area end of all islands | C54: =J16 -> 0 | D54: m² | E54: 85 | F54: =SUM(E54*C54) -> 0
A55: 7 | B55: TRAFFIC SIGNAL WORKS | D55: NA | G55: =SUM(F55:F55) -> 0
A56: 8 | B56: SIGNAL MAINTENANCE (10 YEARS) by Road Authority | D56: NA | F56: =SUM(E56*C56) -> 0 | G56: =F56 -> 0
A57: 9 | B57: POWER & LIGHTING | G57: =SUM(F58:F64) -> 258521.4286
A58: 9.1 | B58: Light pole (1-way) and luminous lights | C58: 0 | D58: No | E58: 8000 | F58: 0
A59: 9.2 | B59: Light pole (2-way) and luminous lights | C59: =J18/70 -> 15.68571429 | D59: No | E59: 9000 | F59: 141171.4286
A60: 9.3 | B60: JUP lighting single | C60: 0 | D60: No | E60: 4000 | F60: 0
A61: 9.4 | B61: JUP lighting dual | C61: 0 | D61: No | E61: 5000 | F61: 0
A62: 9.5 | B62: Cabling, conduits and pits | C62: =J18 -> 1098 | D62: Lm | E62: 75 | F62: 82350
A63: 9.6 | B63: Electrical connection | C63: 1 | D63: Item | E63: 15000 | F63: 15000
A64: 9.7 | B64: Removal & replacement of pole-mounted substation | C64: 4 | D64: Item | E64: 5000 | F64: 20000
A65: 10 | B65: LANDSCAPING WORKS | G65: =SUM(F65:F66) -> 233269.75
A66: 10.1 | B66: Topsoiling seeding | C66: =SUM(J13,J17)*6+J12*0.5+J11-J16 -> 27443.5 | D66: m² | E66: 8.5 | F66: =SUM(E66*C66) -> 233269.75
A67: 11 | B67: SIGNING | C67: 1 | D67: item | E67: 10000 | F67: 10000 | G67: =F67 -> 10000
A68: 12 | B68: LINEMARKING (Thermoplastic) | C68: 1 | D68: item | E68: 30000 | F68: 30000 | G68: =F68 -> 30000
A69: 13 | B69: SERVICE RELOCATION | G69: =SUM(F69:F76) -> 1921500
A70: 13.1 | B70: Water supply main, 300 mm | C70: =$J$18 -> 1098 | D70: Lm | E70: 350 | F70: =SUM(E70*C70) -> 384300
A71: 13.2 | B71: Gas supply main 150 mm | C71: =$J$18 -> 1098 | D71: Lm | E71: 180 | F71: =SUM(E71*C71) -> 197640
A72: 13.3 | B72: Telco Pit and Pipe (Assume 3x100mm) | C72: 1098 | D72: Lm | E72: 120 | F72: =SUM(E72*C72) -> 131760
A73: 13.4 | B73: Sewer main 300 mm (Assume Gravity + FCR Backfill) | C73: 1098 | D73: Lm | E73: 450 | F73: 494100
A74: 13.5 | B74: UG electrical (HV + LV) | C74: 1098 | D74: Lm | E74: 300 | F74: =SUM(E74*C74) -> 329400
A75: 13.6 | B75: Water supply main (RECYCLED), 300 mm | C75: 1098 | D75: Lm | E75: 350 | F75: =SUM(E75*C75) -> 384300
A76: 13.7 | B76: (Overhead electrical) No allowance | C76: 0 | D76: Lm | F76: =SUM(E76*C76) -> 0
A77: 14 | B77: MISCELLANEOUS | G77: =SUM(F77:F82) -> 75195
B78: Existing Road outside of new road pavements
A79: 14.1 | B79: Strip asphalt | C79: =J9 -> 3342 | D79: m² | E79: 5 | F79: =SUM(E79*C79) -> 16710
A80: 14.2 | B80: Recycle FCR to stockpile | C80: =C79*0.3 -> 1002.6 | D80: m³ | E80: 10 | F80: =SUM(E80*C80) -> 10026
A81: 14.3 | B81: backfill with structural fill | C81: =C79*0.5 -> 1671 | D81: m³ | E81: 12 | F81: =SUM(E81*C81) -> 20052
A82: 14.4 | B82: Topsoiling | C82: =C79 -> 3342 | D82: m² | E82: 8.5 | F82: =SUM(E82*C82) -> 28407
A83: 15 | B83: PROVISIONAL SUM - DAYWORK | D83: item | F83: 0 | G83: =F83 -> 0
B85: TOTAL A - C | F85: =SUM(F25:F84,F7:F23) -> 7308228.455 | G85: =SUM(G24+G15+G7) -> 7308228.455
A87: D | B87: Contingency
B88: =Summary!B17 -> Contingency (15% of C) | F88: 0.15 | G88: =F88*G24 -> 977863.8493
A90: E | B90: PROJECT BUDGET
B91: Total Estimate | G91: =G88+G85 -> 8286092.304
B92: Total Estimate per linear metre | G92: =G91/J18 -> 7546.532153
A94: Notes:
A95: - | B95: Koukoura Road earthworks based on a concept vertical grade alignment
A97: Services
A98: 1 | B98: Basic supply infrastructure has been included for Gas, Telco, Sewer, Water, U/G HV & LV elect have been incorporated for the road sections
A99: 2 | B99: No allowance for water, gas, telstra, sewer
A100: Substations
A101: 3 | B101: No allowance for substations
A102: Preliminaries
A103: 4 | B103: Based on nominal rates
A104: Subsoil Drain
A105: 5 | B105: Assume same as kerb and channel
A106: Side Entry Pits
A107: 6 | B107: Based on 50 m intervals
A108: Tactile Pavers
A109: 7 | B109: Assume hazard TGSI's (no directional)
A110: Signing
A111: 8 | B111: Nominal rate
A112: Pavement
A113: 9 | B113: Assume deep lift asphalt pavement
A114: Tree Removal
A115: 10 | B115: Based on preliminary information
A116: Roads
A117: 11 | B117: Where applicable, existing asphalt roads to be demolished as part of intersection works
A122: AUTHOR: | B122: Graeme Stenton
A123: Date: | B123: 2014-12-18
A125: REVIEWER: | B125: Rob Henry
A126: Date:
